Department Family,Entity,Date,Expense Type,Expense Area,Supplier,Transaction Number,Amount In Sterling
UK Trade and Investment,UK Trade and Investment Programme,5/12/2010,Basic Grants,International Sectors Group - UK Trade and Investments,UK SPILL LTD,131560,"5,000.00"
UK Trade and Investment,UK Trade and Investment Programme,5/12/2010,Basic Grants,International Sectors Group - UK Trade and Investments,JANET CAMPBELL & NICK GARWOOD T/A FLUENCY IN ENGLISH,131538,"1,000.00"
UK Trade and Investment,UK Trade and Investment Programme,5/12/2010,Basic Grants,International Sectors Group - UK Trade and Investments,NORTHSTAR LIPIDS (UK) LTD,131547,"1,000.00"
UK Trade and Investment,UK Trade and Investment Programme,5/12/2010,Basic Grants,International Sectors Group - UK Trade and Investments,OASYS TECHNOLOGIES LTD,131537,"1,000.00"
UK Trade and Investment,UK Trade and Investment Programme,5/12/2010,Sponsors Grants,International Sectors Group - UK Trade and Investments,UK SPILL LTD,131562,"1,175.00"
UK Trade and Investment,UK Trade and Investment Programme,5/12/2010,Sponsors Grants,International Sectors Group - UK Trade and Investments,PACT,131532,"18,800.00"
UK Trade and Investment,UK Trade and Investment Programme,5/12/2010,Salaries and Wages,Marketing Directorate - UK Trade and Investments,MICHAEL PAGE INTERNATIONAL RECRUITMENT LTD,131542,"4,318.13"
UK Trade and Investment,UK Trade and Investment Programme,5/12/2010,Salaries and Wages,Marketing Directorate - UK Trade and Investments,MICHAEL PAGE INTERNATIONAL RECRUITMENT LTD,131541,"5,134.75"
UK Trade and Investment,UK Trade and Investment Programme,5/12/2010,Salaries and Wages,Marketing Directorate - UK Trade and Investments,MICHAEL PAGE INTERNATIONAL RECRUITMENT LTD,131543,"7,300.42"
UK Trade and Investment,UK Trade and Investment Programme,5/12/2010,Salaries and Wages,Marketing Directorate - UK Trade and Investments,MICHAEL PAGE INTERNATIONAL RECRUITMENT LTD,131544,"5,442.32"
UK Trade and Investment,UK Trade and Investment Programme,5/12/2010,Salaries and Wages,Marketing Directorate - UK Trade and Investments,JAMIE OLIVER,131531,"1,000.00"
UK Trade and Investment,UK Trade and Investment Programme,5/12/2010,Salaries and Wages,Marketing Directorate - UK Trade and Investments,ADECCO UK LTD,130320,950.85
UK Trade and Investment,UK Trade and Investment Programme,5/12/2010,Salaries and Wages,Marketing Directorate - UK Trade and Investments,ADECCO UK LTD,130320,-950.85
UK Trade and Investment,UK Trade and Investment Programme,5/12/2010,Salaries and Wages,Marketing Directorate - UK Trade and Investments,ADECCO UK LTD,130320,971.53
UK Trade and Investment,UK Trade and Investment Programme,5/12/2010,Salaries and Wages,Marketing Directorate - UK Trade and Investments,ADECCO UK LTD,130320,-971.53
UK Trade and Investment,UK Trade and Investment Programme,5/12/2010,Salaries and Wages,Marketing Directorate - UK Trade and Investments,ADECCO UK LTD,130320,971.53
UK Trade and Investment,UK Trade and Investment Programme,5/12/2010,Salaries and Wages,Marketing Directorate - UK Trade and Investments,METHODS CONSULTING LTD,131551,"6,697.50"
UK Trade and Investment,UK Trade and Investment Programme,5/12/2010,Travel and Subsistence UK,Defence and Security Organisation - UK Trade and Investments,THISTLE HOTEL CHARING CROSS,131529,629.61
UK Trade and Investment,UK Trade and Investment Programme,5/12/2010,Travel and Subsistence UK,Defence and Security Organisation - UK Trade and Investments,THISTLE HOTEL CHARING CROSS,131530,"1,650.01"
UK Trade and Investment,UK Trade and Investment Programme,5/12/2010,Travel and Subsistence O'seas,Regional Directorate - UK Trade and Investments,ENVIROGEN TECHNOLOGIES LTD,131552,795
UK Trade and Investment,UK Trade and Investment Programme,5/12/2010,Event Management,International Sectors Group - UK Trade and Investments,HESPERIA VICTORIA UK LTD T/A HESPERIA LONDON VICTORIA,131561,809.99
UK Trade and Investment,UK Trade and Investment Programme,5/12/2010,Event Management,International Sectors Group - UK Trade and Investments,CLEARVIEW IMAGING SERVICES LTD,131549,"4,177.50"
UK Trade and Investment,UK Trade and Investment Programme,5/12/2010,Event Management,International Sectors Group - UK Trade and Investments,CLEARVIEW IMAGING SERVICES LTD,131546,975
UK Trade and Investment,UK Trade and Investment Programme,5/12/2010,Event Management,Regional Directorate - UK Trade and Investments,SOUTH EAST TRADE & INVESTMENT LTD,131559,"5,000.00"
UK Trade and Investment,UK Trade and Investment Programme,5/12/2010,Event Management,Regional Directorate - UK Trade and Investments,CCP MANAGEMENT LTD T/A THE DIALOGUE GROUP,131316,"2,200.00"
UK Trade and Investment,UK Trade and Investment Programme,5/12/2010,Venue Hire,Regional Directorate - UK Trade and Investments,DE VERE DARESBURY PARK HOTEL,131553,842.55
UK Trade and Investment,UK Trade and Investment Programme,5/12/2010,Advertising,Regional Directorate - UK Trade and Investments,LANCASHIRE EVENING POST LTD,131550,"1,320.00"
UK Trade and Investment,UK Trade and Investment Programme,5/12/2010,Advertising,Regional Directorate - UK Trade and Investments,LANCASHIRE EVENING POST LTD,131555,"2,340.00"
UK Trade and Investment,UK Trade and Investment Programme,5/12/2010,Sponsorship,International Sectors Group - UK Trade and Investments,MINIBAR-VENTURES LTD,131534,"5,875.00"
UK Trade and Investment,UK Trade and Investment Programme,5/12/2010,Sponsorship,Marketing Directorate - UK Trade and Investments,TELEGRAPH MEDIA GROUP LTD,131557,"12,000.00"
UK Trade and Investment,UK Trade and Investment Programme,5/12/2010,Sponsorship,Marketing Directorate - UK Trade and Investments,TELEGRAPH MEDIA GROUP LTD,131557,"12,000.00"
UK Trade and Investment,UK Trade and Investment Programme,5/12/2010,Video Production Services,Marketing Directorate - UK Trade and Investments,MICK RAWSON,131554,"1,110.00"
UK Trade and Investment,UK Trade and Investment Programme,5/12/2010,Video Production Services,Marketing Directorate - UK Trade and Investments,S K & E S MAHER T/A SKM PRODUCTIONS,131556,"1,550.00"
UK Trade and Investment,UK Trade and Investment Programme,5/12/2010,Authoring and Copywriting Costs,Marketing Directorate - UK Trade and Investments,CODEGENT LTD,131533,"10,300.00"
UK Trade and Investment,UK Trade and Investment Programme,5/12/2010,Scheme Management Charges,Regional Directorate - UK Trade and Investments,LOV-LI DESIGN,129744,"1,000.00"
UK Trade and Investment,UK Trade and Investment Programme,5/13/2010,Fees and Charges,Regional Directorate - UK Trade and Investments,NEXT BEST CLOTHING LTD,131399,851.06
UK Trade and Investment,UK Trade and Investment Programme,5/13/2010,Basic Grants,International Sectors Group - UK Trade and Investments,GRAYSON AUTOMOTIVE SERVICES LTD,131574,"1,000.00"
UK Trade and Investment,UK Trade and Investment Programme,5/13/2010,Basic Grants,International Sectors Group - UK Trade and Investments,FINE ART TRADE GUILD,131579,"1,000.00"
UK Trade and Investment,UK Trade and Investment Programme,5/13/2010,Basic Grants,International Sectors Group - UK Trade and Investments,VOICE PERFECT LTD,131558,"1,000.00"
UK Trade and Investment,UK Trade and Investment Programme,5/13/2010,Basic Grants,International Sectors Group - UK Trade and Investments,ONLY NATURAL PRODUCTS LTD,131572,"1,000.00"
UK Trade and Investment,UK Trade and Investment Programme,5/13/2010,Basic Grants,International Sectors Group - UK Trade and Investments,EARLEX LTD T/A CLARKE CABLE,131565,"1,000.00"
UK Trade and Investment,UK Trade and Investment Programme,5/13/2010,Basic Grants,International Sectors Group - UK Trade and Investments,TROUVAY & CAUVIN LTD,131575,"1,000.00"
UK Trade and Investment,UK Trade and Investment Programme,5/13/2010,Basic Grants,International Sectors Group - UK Trade and Investments,P & M AVIATION LTD,131577,"1,000.00"
UK Trade and Investment,UK Trade and Investment Programme,5/13/2010,Basic Grants,International Sectors Group - UK Trade and Investments,ROBERT FREW LTD,131570,"1,000.00"
UK Trade and Investment,UK Trade and Investment Programme,5/13/2010,Basic Grants,International Sectors Group - UK Trade and Investments,WINDOW FABRICATION AND FIXING SUPPLIES LTD T/A FAB & FIX,131569,"1,000.00"
UK Trade and Investment,UK Trade and Investment Programme,5/13/2010,Basic Grants,International Sectors Group - UK Trade and Investments,HIGH VOLTAGE PARTIAL DISCHARGE LTD,131566,"1,000.00"
UK Trade and Investment,UK Trade and Investment Programme,5/13/2010,Basic Grants,International Sectors Group - UK Trade and Investments,FEDERATION OF ENVIRONMENTAL TRADE ASSOCIATIONS,131580,"1,000.00"
UK Trade and Investment,UK Trade and Investment Programme,5/13/2010,Basic Grants,International Sectors Group - UK Trade and Investments,PPMA LTD,131583,"4,200.00"
UK Trade and Investment,UK Trade and Investment Programme,5/13/2010,Sponsors Grants,International Sectors Group - UK Trade and Investments,PPMA LTD,131573,"8,225.00"
UK Trade and Investment,UK Trade and Investment Programme,5/13/2010,Sponsors Grants,International Sectors Group - UK Trade and Investments,PPMA LTD,131584,705
UK Trade and Investment,UK Trade and Investment Programme,5/13/2010,Travel and Subsistence UK,International Sectors Group - UK Trade and Investments,"Personal Expense, Name Witheld",504928,502.45
UK Trade and Investment,UK Trade and Investment Programme,5/13/2010,Travel and Subsistence O'seas,Regional Directorate - UK Trade and Investments,PENNY HYDRAULICS LTD,131604,500
UK Trade and Investment,UK Trade and Investment Programme,5/13/2010,Rental of Accomodation,Defence and Security Organisation - UK Trade and Investments,MARRIOTT LONDON HEATHROW HOTEL,130359,502
UK Trade and Investment,UK Trade and Investment Programme,5/13/2010,Rental of Accomodation,Defence and Security Organisation - UK Trade and Investments,MARRIOTT LONDON HEATHROW HOTEL,130359,-502
UK Trade and Investment,UK Trade and Investment Programme,5/13/2010,Rental of Accomodation,Defence and Security Organisation - UK Trade and Investments,MARRIOTT LONDON HEATHROW HOTEL,130359,502
UK Trade and Investment,UK Trade and Investment Programme,5/13/2010,Event Management,International Sectors Group - UK Trade and Investments,UNIVERSITY OF MANCHESTER,131589,"3,009.66"
UK Trade and Investment,UK Trade and Investment Programme,5/13/2010,Venue Hire,Business Group - UK Trade and Investments,TATE GALLERY,131599,"4,000.00"
UK Trade and Investment,UK Trade and Investment Programme,5/13/2010,Venue Hire,International Sectors Group - UK Trade and Investments,FOREIGN AND COMMONWEALTH OFFICE (FCO),130024,500
UK Trade and Investment,UK Trade and Investment Programme,5/13/2010,Advertising,Business Group - UK Trade and Investments,BRACKEN PRESENTATIONS LTD,131587,500
UK Trade and Investment,UK Trade and Investment Programme,5/13/2010,Sponsorship,Regional Directorate - UK Trade and Investments,EAST MIDLANDS INTERNATIONAL TRADE ASSOCIATION,131571,"22,500.00"
UK Trade and Investment,UK Trade and Investment Programme,5/13/2010,Sponsorship,Regional Directorate - UK Trade and Investments,EAST MIDLANDS INTERNATIONAL TRADE ASSOCIATION,131571,"7,500.00"
UK Trade and Investment,UK Trade and Investment Programme,5/13/2010,Printed Publications,Business Group - UK Trade and Investments,ACUMEN DESIGN CONSULTANCY LTD,131590,"1,230.00"
UK Trade and Investment,UK Trade and Investment Programme,5/13/2010,Consultancy,International Group - UK Trade and Investments,WHITE MAPLE CONSULTING LTD,131600,"1,804.20"
UK Trade and Investment,UK Trade and Investment Programme,5/13/2010,Scheme Management Charges,Regional Directorate - UK Trade and Investments,WEST MIDLANDS INTERNATIONAL TRADE LLP,131597,"163,300.00"
UK Trade and Investment,UK Trade and Investment Programme,5/13/2010,Scheme Management Charges,Regional Directorate - UK Trade and Investments,PILOTTO DE VOS LTD,131444,750
UK Trade and Investment,UK Trade and Investment Programme,5/13/2010,Scheme Management Charges,Regional Directorate - UK Trade and Investments,PILOTTO DE VOS LTD,131443,750
UK Trade and Investment,UK Trade and Investment Programme,5/13/2010,Scheme Management Charges,Regional Directorate - UK Trade and Investments,HOLKIRK COMMUNICATIONS LTD,131442,532.05
UK Trade and Investment,UK Trade and Investment Programme,5/13/2010,Scheme Management Charges,Regional Directorate - UK Trade and Investments,GAMEWARE DEVELOPMENT  LTD,131505,540.07
UK Trade and Investment,UK Trade and Investment Programme,5/13/2010,Scheme Management Charges,Regional Directorate - UK Trade and Investments,SOLITON IT LTD,131507,"1,500.00"
UK Trade and Investment,UK Trade and Investment Programme,5/13/2010,Scheme Management Charges,Regional Directorate - UK Trade and Investments,SHIP SHAPE BEDDING LTD,131508,675
UK Trade and Investment,UK Trade and Investment Programme,5/13/2010,Scheme Management Charges,Regional Directorate - UK Trade and Investments,HENRY WATSON'S POTTERIES LTD,131506,696.19
UK Trade and Investment,UK Trade and Investment Programme,5/13/2010,Scheme Management Charges,Regional Directorate - UK Trade and Investments,KLS SOUTHERN LTD,131455,"1,500.00"
UK Trade and Investment,UK Trade and Investment Programme,5/13/2010,Scheme Management Charges,Regional Directorate - UK Trade and Investments,JONES & SON PEST CONTROL SUPPLIES LTD,131458,500
UK Trade and Investment,UK Trade and Investment Programme,5/13/2010,Scheme Management Charges,Regional Directorate - UK Trade and Investments,PHASOR LTD,131450,721.64
UK Trade and Investment,UK Trade and Investment Programme,5/13/2010,Scheme Management Charges,Regional Directorate - UK Trade and Investments,KANMAR TRUSTEES T/A NLG,131503,"1,500.00"
UK Trade and Investment,UK Trade and Investment Programme,5/13/2010,Scheme Management Charges,Regional Directorate - UK Trade and Investments,PDM (NORTH EAST) LTD,131448,527.28
UK Trade and Investment,UK Trade and Investment Programme,5/13/2010,Development Cost - Website (AUC) - Clearing Account,Strategy and Human Resources Group - UK Trade and Investments,VENN GROUP LTD,131585,658
UK Trade and Investment,UK Trade and Investment Programme,5/13/2010,Development Cost - Website (AUC) - Clearing Account,Strategy and Human Resources Group - UK Trade and Investments,ADECCO UK LTD,131601,550.39
UK Trade and Investment,UK Trade and Investment Programme,5/14/2010,Grant in Aid,Business Group - UK Trade and Investments,DEPARTMENT FOR BUSINESS INNOVATION & SKILLS,131307,"16,002,000.00"
UK Trade and Investment,UK Trade and Investment Programme,5/14/2010,Salaries and Wages,Business Group - UK Trade and Investments,FOREIGN AND COMMONWEALTH OFFICE (FCO),131517,"59,741.35"
UK Trade and Investment,UK Trade and Investment Programme,5/14/2010,Salaries and Wages,Regional Directorate - UK Trade and Investments,LEARNING IMPACT INTERNATIONAL LTD,131652,"3,112.73"
UK Trade and Investment,UK Trade and Investment Programme,5/14/2010,Travel and Subsistence O'seas,Regional Directorate - UK Trade and Investments,EAST OF ENGLAND INTERNATIONAL LTD,131441,"1,157.53"
UK Trade and Investment,UK Trade and Investment Programme,5/14/2010,Travel and Subsistence O'seas,Regional Directorate - UK Trade and Investments,EAST OF ENGLAND INTERNATIONAL LTD,131441,798.46
UK Trade and Investment,UK Trade and Investment Programme,5/14/2010,Travel and Subsistence O'seas,Regional Directorate - UK Trade and Investments,04 BRAS LTD,131656,500
UK Trade and Investment,UK Trade and Investment Programme,5/14/2010,Training - General,Regional Directorate - UK Trade and Investments,LEARNING IMPACT INTERNATIONAL LTD,131653,"2,398.50"
UK Trade and Investment,UK Trade and Investment Programme,5/14/2010,Event Management,International Sectors Group - UK Trade and Investments,TENT LONDON LTD,131610,"10,000.00"
UK Trade and Investment,UK Trade and Investment Programme,5/14/2010,Event Management,Regional Directorate - UK Trade and Investments,EAST OF ENGLAND INTERNATIONAL LTD,131441,871
UK Trade and Investment,UK Trade and Investment Programme,5/14/2010,Venue Hire,Regional Directorate - UK Trade and Investments,THE CAMBRIDGE BELFRY HOTEL,131655,"1,340.43"
UK Trade and Investment,UK Trade and Investment Programme,5/14/2010,Venue Hire,Regional Directorate - UK Trade and Investments,THE CAMBRIDGE BELFRY HOTEL,131655,750
UK Trade and Investment,UK Trade and Investment Programme,5/14/2010,Stand Space/rental costs,Defence and Security Organisation - UK Trade and Investments,ASTANA-EXPO KS,129979,"1,985.82"
UK Trade and Investment,UK Trade and Investment Programme,5/14/2010,Stand Construction Costs,Marketing Directorate - UK Trade and Investments,OCEAN DESIGNS LTD,131649,"7,651.00"
UK Trade and Investment,UK Trade and Investment Programme,5/14/2010,Sponsorship,Regional Directorate - UK Trade and Investments,CORNWALL DEVELOPMENT COMPANY LTD,131651,"2,937.50"
UK Trade and Investment,UK Trade and Investment Programme,5/14/2010,Video Production Services,Marketing Directorate - UK Trade and Investments,S K & E S MAHER T/A SKM PRODUCTIONS,131631,620
UK Trade and Investment,UK Trade and Investment Programme,5/14/2010,Video Production Services,Marketing Directorate - UK Trade and Investments,S K & E S MAHER T/A SKM PRODUCTIONS,131630,620
UK Trade and Investment,UK Trade and Investment Programme,5/14/2010,Research and Development Costs,Business Group - UK Trade and Investments,S & S DATA LTD,131592,"1,532.65"
UK Trade and Investment,UK Trade and Investment Programme,5/14/2010,Survey Costs,International Sectors Group - UK Trade and Investments,S & S DATA LTD,131593,"3,593.48"
UK Trade and Investment,UK Trade and Investment Programme,5/14/2010,Scheme Management Charges,Regional Directorate - UK Trade and Investments,S & S DATA LTD,131591,"1,211.55"
UK Trade and Investment,UK Trade and Investment Programme,5/14/2010,Scheme Management Charges,Regional Directorate - UK Trade and Investments,EAST MIDLANDS BUSINESS LTD,131611,"132,363.00"
UK Trade and Investment,UK Trade and Investment Programme,5/14/2010,Other IT Services,International Group - UK Trade and Investments,S & S DATA LTD,131595,851.31
UK Trade and Investment,UK Trade and Investment Programme,5/14/2010,Bank Charges - Commercial Banks,Regional Directorate - UK Trade and Investments,DTI OTSS COSTS A\C,131612,709.93
UK Trade and Investment,UK Trade and Investment Programme,5/14/2010,Bank Charges - Commercial Banks,Regional Directorate - UK Trade and Investments,DTI OTSS COSTS A\C,131617,612
UK Trade and Investment,UK Trade and Investment Programme,5/14/2010,Bank Charges - Commercial Banks,Regional Directorate - UK Trade and Investments,DTI OTSS COSTS A\C,131606,"4,403.10"
UK Trade and Investment,UK Trade and Investment Programme,5/17/2010,Basic Grants,International Sectors Group - UK Trade and Investments,FABWELD STEEL PRODUCTS LTD,131694,"1,000.00"
UK Trade and Investment,UK Trade and Investment Programme,5/17/2010,Basic Grants,International Sectors Group - UK Trade and Investments,PANADENT LTD,131659,"1,000.00"
UK Trade and Investment,UK Trade and Investment Programme,5/17/2010,Basic Grants,International Sectors Group - UK Trade and Investments,THE CARLING PARTNERSHIP LTD,131687,"1,000.00"
UK Trade and Investment,UK Trade and Investment Programme,5/17/2010,Basic Grants,International Sectors Group - UK Trade and Investments,ED.UK.8 WORLDWIDE LTD,131661,"1,000.00"
UK Trade and Investment,UK Trade and Investment Programme,5/17/2010,Basic Grants,International Sectors Group - UK Trade and Investments,TARA SUPPORT SERVICES LTD,131668,"1,000.00"
UK Trade and Investment,UK Trade and Investment Programme,5/17/2010,Basic Grants,International Sectors Group - UK Trade and Investments,STODDARD MANUFACTURING COMPANY LTD,131672,"1,000.00"
UK Trade and Investment,UK Trade and Investment Programme,5/17/2010,Basic Grants,International Sectors Group - UK Trade and Investments,SELADIS BIO LTD,131673,"1,000.00"
UK Trade and Investment,UK Trade and Investment Programme,5/17/2010,Basic Grants,International Sectors Group - UK Trade and Investments,SEVERN GLOCON LTD,131684,"1,000.00"
UK Trade and Investment,UK Trade and Investment Programme,5/17/2010,Basic Grants,International Sectors Group - UK Trade and Investments,CHIVIOTT MACHINE TOOLS LTD,131662,"1,000.00"
UK Trade and Investment,UK Trade and Investment Programme,5/17/2010,Basic Grants,International Sectors Group - UK Trade and Investments,JOANNE & NEIL HARDY T/A WESTPORT HOSPITALITY TAYSIDE HOTEL,131669,"1,000.00"
UK Trade and Investment,UK Trade and Investment Programme,5/17/2010,Basic Grants,International Sectors Group - UK Trade and Investments,ONE-LUX LTD,131660,"1,000.00"
UK Trade and Investment,UK Trade and Investment Programme,5/17/2010,Basic Grants,International Sectors Group - UK Trade and Investments,SPECIAL PRODUCTS LTD,131667,"1,000.00"
UK Trade and Investment,UK Trade and Investment Programme,5/17/2010,Basic Grants,International Sectors Group - UK Trade and Investments,ADVANCED CHEMICAL ETCHING LTD,131691,"1,000.00"
UK Trade and Investment,UK Trade and Investment Programme,5/17/2010,Basic Grants,International Sectors Group - UK Trade and Investments,BRENDON LTD,131689,"1,000.00"
UK Trade and Investment,UK Trade and Investment Programme,5/17/2010,Basic Grants,International Sectors Group - UK Trade and Investments,WINDOW FABRICATION AND FIXING SUPPLIES LTD T/A FAB & FIX,131688,"1,000.00"
UK Trade and Investment,UK Trade and Investment Programme,5/17/2010,Basic Grants,International Sectors Group - UK Trade and Investments,ART MEETS MATTER LTD,131678,"1,000.00"
UK Trade and Investment,UK Trade and Investment Programme,5/17/2010,Basic Grants,International Sectors Group - UK Trade and Investments,C FOUR LTD,131686,"1,000.00"
UK Trade and Investment,UK Trade and Investment Programme,5/17/2010,Basic Grants,International Sectors Group - UK Trade and Investments,ERG (AIR POLLUTION CONTROL) LTD,131682,"1,000.00"
UK Trade and Investment,UK Trade and Investment Programme,5/17/2010,Basic Grants,International Sectors Group - UK Trade and Investments,THE OLD BEAR (CIRENCESTER) LTD,131671,"1,000.00"
UK Trade and Investment,UK Trade and Investment Programme,5/17/2010,Basic Grants,International Sectors Group - UK Trade and Investments,NICK RHODES T/A SWITCH OPEN ILLUSTRATIONS,131670,"1,000.00"
UK Trade and Investment,UK Trade and Investment Programme,5/17/2010,Travel and Subsistence O'seas,Business Group - UK Trade and Investments,FOREIGN AND COMMONWEALTH OFFICE (FCO),130177,"3,960.47"
UK Trade and Investment,UK Trade and Investment Programme,5/17/2010,Travel and Subsistence O'seas,Business Group - UK Trade and Investments,FOREIGN AND COMMONWEALTH OFFICE (FCO),130178,"5,642.73"
UK Trade and Investment,UK Trade and Investment Programme,5/17/2010,Travel and Subsistence O'seas,Regional Directorate - UK Trade and Investments,ANGLIA RUSKIN UNIVERSITY,131713,550
UK Trade and Investment,UK Trade and Investment Programme,5/17/2010,Travel and Subsistence O'seas,Regional Directorate - UK Trade and Investments,GWE BUSINESS WEST LTD,131716,700
UK Trade and Investment,UK Trade and Investment Programme,5/17/2010,Travel and Subsistence O'seas,Strategy and Human Resources Group - UK Trade and Investments,FOREIGN AND COMMONWEALTH OFFICE (FCO),130223,510
UK Trade and Investment,UK Trade and Investment Programme,5/17/2010,Training - General,Regional Directorate - UK Trade and Investments,WEST MIDLANDS INTERNATIONAL TRADE LLP,131702,"9,616.37"
UK Trade and Investment,UK Trade and Investment Programme,5/17/2010,Event Management,International Group - UK Trade and Investments,INNOVISION EVENTS LTD,131679,"29,132.40"
UK Trade and Investment,UK Trade and Investment Programme,5/17/2010,Event Management,International Group - UK Trade and Investments,FOREIGN AND COMMONWEALTH OFFICE (FCO),130219,"5,249.93"
UK Trade and Investment,UK Trade and Investment Programme,5/17/2010,Event Management,International Group - UK Trade and Investments,FOREIGN AND COMMONWEALTH OFFICE (FCO),130233,515.73
UK Trade and Investment,UK Trade and Investment Programme,5/17/2010,Event Management,International Sectors Group - UK Trade and Investments,FOREIGN AND COMMONWEALTH OFFICE (FCO),130199,"5,818.80"
UK Trade and Investment,UK Trade and Investment Programme,5/17/2010,Event Management,International Sectors Group - UK Trade and Investments,FOREIGN AND COMMONWEALTH OFFICE (FCO),130213,513.84
UK Trade and Investment,UK Trade and Investment Programme,5/17/2010,Event Management,International Sectors Group - UK Trade and Investments,FOREIGN AND COMMONWEALTH OFFICE (FCO),130216,"2,223.04"
UK Trade and Investment,UK Trade and Investment Programme,5/17/2010,Event Management,International Sectors Group - UK Trade and Investments,FOREIGN AND COMMONWEALTH OFFICE (FCO),130217,"1,027.67"
UK Trade and Investment,UK Trade and Investment Programme,5/17/2010,Event Management,International Sectors Group - UK Trade and Investments,FOREIGN AND COMMONWEALTH OFFICE (FCO),130235,624.64
UK Trade and Investment,UK Trade and Investment Programme,5/17/2010,Event Management,International Sectors Group - UK Trade and Investments,FOREIGN AND COMMONWEALTH OFFICE (FCO),130237,"1,555.79"
UK Trade and Investment,UK Trade and Investment Programme,5/17/2010,Event Management,International Sectors Group - UK Trade and Investments,FOREIGN AND COMMONWEALTH OFFICE (FCO),130238,"2,018.87"
UK Trade and Investment,UK Trade and Investment Programme,5/17/2010,Event Management,International Sectors Group - UK Trade and Investments,FOREIGN AND COMMONWEALTH OFFICE (FCO),130249,"3,309.72"
UK Trade and Investment,UK Trade and Investment Programme,5/17/2010,Event Management,International Sectors Group - UK Trade and Investments,FOREIGN AND COMMONWEALTH OFFICE (FCO),130251,"3,806.18"
UK Trade and Investment,UK Trade and Investment Programme,5/17/2010,Event Management,International Sectors Group - UK Trade and Investments,GRAYLING COMMUNICATIONS LTD T/A GRAYLING LIVE,131699,"21,333.46"
UK Trade and Investment,UK Trade and Investment Programme,5/17/2010,Event Management,Marketing Directorate - UK Trade and Investments,FOREIGN AND COMMONWEALTH OFFICE (FCO),130185,669.04
UK Trade and Investment,UK Trade and Investment Programme,5/17/2010,Event Management,Marketing Directorate - UK Trade and Investments,FOREIGN AND COMMONWEALTH OFFICE (FCO),130189,"3,972.01"
UK Trade and Investment,UK Trade and Investment Programme,5/17/2010,Event Management,Marketing Directorate - UK Trade and Investments,FOREIGN AND COMMONWEALTH OFFICE (FCO),130190,"1,070.08"
UK Trade and Investment,UK Trade and Investment Programme,5/17/2010,Event Management,Marketing Directorate - UK Trade and Investments,FOREIGN AND COMMONWEALTH OFFICE (FCO),130191,"1,944.63"
UK Trade and Investment,UK Trade and Investment Programme,5/17/2010,Event Management,Marketing Directorate - UK Trade and Investments,FOREIGN AND COMMONWEALTH OFFICE (FCO),130205,"1,110.62"
UK Trade and Investment,UK Trade and Investment Programme,5/17/2010,Event Management,Marketing Directorate - UK Trade and Investments,FOREIGN AND COMMONWEALTH OFFICE (FCO),130207,"2,225.18"
UK Trade and Investment,UK Trade and Investment Programme,5/17/2010,Event Management,Marketing Directorate - UK Trade and Investments,FOREIGN AND COMMONWEALTH OFFICE (FCO),130209,"6,470.92"
UK Trade and Investment,UK Trade and Investment Programme,5/17/2010,Event Management,Marketing Directorate - UK Trade and Investments,FOREIGN AND COMMONWEALTH OFFICE (FCO),130224,705.19
UK Trade and Investment,UK Trade and Investment Programme,5/17/2010,Event Management,Marketing Directorate - UK Trade and Investments,FOREIGN AND COMMONWEALTH OFFICE (FCO),130227,640.61
UK Trade and Investment,UK Trade and Investment Programme,5/17/2010,Event Management,Marketing Directorate - UK Trade and Investments,FOREIGN AND COMMONWEALTH OFFICE (FCO),130234,"4,815.64"
UK Trade and Investment,UK Trade and Investment Programme,5/17/2010,Event Management,Marketing Directorate - UK Trade and Investments,FOREIGN AND COMMONWEALTH OFFICE (FCO),130247,"1,985.83"
UK Trade and Investment,UK Trade and Investment Programme,5/17/2010,Event Management,Marketing Directorate - UK Trade and Investments,FOREIGN AND COMMONWEALTH OFFICE (FCO),130250,"1,489.38"
UK Trade and Investment,UK Trade and Investment Programme,5/17/2010,Event Management,Marketing Directorate - UK Trade and Investments,FOREIGN AND COMMONWEALTH OFFICE (FCO),130267,"4,547.32"
UK Trade and Investment,UK Trade and Investment Programme,5/17/2010,Event Management,Marketing Directorate - UK Trade and Investments,FOREIGN AND COMMONWEALTH OFFICE (FCO),130268,840.72
UK Trade and Investment,UK Trade and Investment Programme,5/17/2010,Event Management,Marketing Directorate - UK Trade and Investments,FOREIGN AND COMMONWEALTH OFFICE (FCO),130269,"1,323.53"
UK Trade and Investment,UK Trade and Investment Programme,5/17/2010,Event Management,Marketing Directorate - UK Trade and Investments,FOREIGN AND COMMONWEALTH OFFICE (FCO),130272,992.92
UK Trade and Investment,UK Trade and Investment Programme,5/17/2010,Event Management,Marketing Directorate - UK Trade and Investments,FOREIGN AND COMMONWEALTH OFFICE (FCO),130273,"1,191.50"
UK Trade and Investment,UK Trade and Investment Programme,5/17/2010,Event Management,Strategy and Human Resources Group - UK Trade and Investments,FOREIGN AND COMMONWEALTH OFFICE (FCO),130221,705.69
UK Trade and Investment,UK Trade and Investment Programme,5/17/2010,Event Management,Strategy and Human Resources Group - UK Trade and Investments,FOREIGN AND COMMONWEALTH OFFICE (FCO),130222,"7,340.51"
UK Trade and Investment,UK Trade and Investment Programme,5/17/2010,Venue Hire,Regional Directorate - UK Trade and Investments,IMAGO @ LOUGHBOROUGH LIMITED,131703,"1,568.30"
UK Trade and Investment,UK Trade and Investment Programme,5/17/2010,Venue Hire,Regional Directorate - UK Trade and Investments,IMAGO @ LOUGHBOROUGH LIMITED,131703,718.08
UK Trade and Investment,UK Trade and Investment Programme,5/17/2010,Venue Hire,Business Group - UK Trade and Investments,THE ROYAL SOCIETY,131666,"2,000.00"
UK Trade and Investment,UK Trade and Investment Programme,5/17/2010,Venue Hire,Business Group - UK Trade and Investments,THE ROYAL SOCIETY,131666,"5,197.90"
UK Trade and Investment,UK Trade and Investment Programme,5/17/2010,Venue Hire,Business Group - UK Trade and Investments,THE ROYAL SOCIETY,131666,927.95
UK Trade and Investment,UK Trade and Investment Programme,5/17/2010,Venue Hire,Business Group - UK Trade and Investments,THE MOLLER CENTRE,131677,"3,100.00"
UK Trade and Investment,UK Trade and Investment Programme,5/17/2010,Venue Hire,Business Group - UK Trade and Investments,THE MOLLER CENTRE,131677,"2,698.72"
UK Trade and Investment,UK Trade and Investment Programme,5/17/2010,Venue Hire,Regional Directorate - UK Trade and Investments,PRIMA HOTELS LTD T/A THE QUORN COUNTRY HOTEL,128228,593.14
UK Trade and Investment,UK Trade and Investment Programme,5/17/2010,Catering,Regional Directorate - UK Trade and Investments,INTERNATIONAL CENTRE FOR LIFE,131685,"1,289.66"
UK Trade and Investment,UK Trade and Investment Programme,5/17/2010,Speakers fees,Regional Directorate - UK Trade and Investments,INTERNATIONAL MARKETING PARTNERS LTD,131706,"1,610.34"
UK Trade and Investment,UK Trade and Investment Programme,5/17/2010,Stand Construction Costs,Marketing Directorate - UK Trade and Investments,RND EXHIBITS INTERNATIONAL LTD,131674,"1,150.00"
UK Trade and Investment,UK Trade and Investment Programme,5/17/2010,Advertising,Marketing Directorate - UK Trade and Investments,FOREIGN AND COMMONWEALTH OFFICE (FCO),130270,"5,229.36"
UK Trade and Investment,UK Trade and Investment Programme,5/17/2010,Advertising,Regional Directorate - UK Trade and Investments,ROOM 501 LTD,131695,806
UK Trade and Investment,UK Trade and Investment Programme,5/17/2010,Sponsorship,International Sectors Group - UK Trade and Investments,PRELUDE TO BUSINESS LTD (THE SUPPER CLUB),131700,881.25
UK Trade and Investment,UK Trade and Investment Programme,5/17/2010,Sponsorship,Marketing Directorate - UK Trade and Investments,THE ECONOMIST INTELLIGENCE UNIT LTD,131664,"29,250.00"
UK Trade and Investment,UK Trade and Investment Programme,5/17/2010,Sponsorship,Marketing Directorate - UK Trade and Investments,FOREIGN AND COMMONWEALTH OFFICE (FCO),130271,"8,475.34"
UK Trade and Investment,UK Trade and Investment Programme,5/17/2010,Sponsorship,Regional Directorate - UK Trade and Investments,FOREIGN AND COMMONWEALTH OFFICE (FCO),130179,"2,849.46"
UK Trade and Investment,UK Trade and Investment Programme,5/17/2010,Sponsorship,Regional Directorate - UK Trade and Investments,FOREIGN AND COMMONWEALTH OFFICE (FCO),130180,"2,005.24"
UK Trade and Investment,UK Trade and Investment Programme,5/17/2010,Sponsorship,Regional Directorate - UK Trade and Investments,FOREIGN AND COMMONWEALTH OFFICE (FCO),130181,"2,650.22"
UK Trade and Investment,UK Trade and Investment Programme,5/17/2010,Sponsorship,Regional Directorate - UK Trade and Investments,FOREIGN AND COMMONWEALTH OFFICE (FCO),130182,"2,849.46"
UK Trade and Investment,UK Trade and Investment Programme,5/17/2010,Sponsorship,Regional Directorate - UK Trade and Investments,FOREIGN AND COMMONWEALTH OFFICE (FCO),130183,"2,000.32"
UK Trade and Investment,UK Trade and Investment Programme,5/17/2010,Promotional Materials,Defence and Security Organisation - UK Trade and Investments,AWARE PROMOTIONAL MERCHANDISE LTD,131697,"1,163.25"
UK Trade and Investment,UK Trade and Investment Programme,5/17/2010,Promotional Materials,Defence and Security Organisation - UK Trade and Investments,AWARE PROMOTIONAL MERCHANDISE LTD,131696,633.91
UK Trade and Investment,UK Trade and Investment Programme,5/17/2010,Promotional Materials,Marketing Directorate - UK Trade and Investments,FOREIGN AND COMMONWEALTH OFFICE (FCO),130188,759.66
UK Trade and Investment,UK Trade and Investment Programme,5/17/2010,Promotional Materials,Marketing Directorate - UK Trade and Investments,FOREIGN AND COMMONWEALTH OFFICE (FCO),130202,"10,000.00"
UK Trade and Investment,UK Trade and Investment Programme,5/17/2010,Promotional Materials,Marketing Directorate - UK Trade and Investments,FOREIGN AND COMMONWEALTH OFFICE (FCO),130204,634
UK Trade and Investment,UK Trade and Investment Programme,5/17/2010,Printing Costs,Marketing Directorate - UK Trade and Investments,FOREIGN AND COMMONWEALTH OFFICE (FCO),130208,"5,686.57"
UK Trade and Investment,UK Trade and Investment Programme,5/17/2010,Photographic Services,Marketing Directorate - UK Trade and Investments,FOREIGN AND COMMONWEALTH OFFICE (FCO),130242,"1,172.95"
UK Trade and Investment,UK Trade and Investment Programme,5/17/2010,Video Production Services,International Sectors Group - UK Trade and Investments,MARICK COMMUNICATIONS LTD,131663,"1,350.00"
UK Trade and Investment,UK Trade and Investment Programme,5/17/2010,Video Production Services,Marketing Directorate - UK Trade and Investments,WHITE LIGHT LTD,131665,"1,265.00"
UK Trade and Investment,UK Trade and Investment Programme,5/17/2010,Design Services,International Sectors Group - UK Trade and Investments,ACUMEN DESIGN CONSULTANCY LTD,131675,540
UK Trade and Investment,UK Trade and Investment Programme,5/17/2010,Design Services,Regional Directorate - UK Trade and Investments,PATRICK SHERIDAN DESIGN LTD,131690,825
UK Trade and Investment,UK Trade and Investment Programme,5/17/2010,Media and Press Services,International Sectors Group - UK Trade and Investments,FOREIGN AND COMMONWEALTH OFFICE (FCO),130274,"3,058.08"
UK Trade and Investment,UK Trade and Investment Programme,5/17/2010,Media and Press Services,Marketing Directorate - UK Trade and Investments,FOREIGN AND COMMONWEALTH OFFICE (FCO),130203,"4,213.59"
UK Trade and Investment,UK Trade and Investment Programme,5/17/2010,Research and Development Costs,International Sectors Group - UK Trade and Investments,FOREIGN AND COMMONWEALTH OFFICE (FCO),130226,717.49
UK Trade and Investment,UK Trade and Investment Programme,5/17/2010,Research and Development Costs,Regional Directorate - UK Trade and Investments,WIN MARKETING (UK) LTD,131704,"3,228.75"
UK Trade and Investment,UK Trade and Investment Programme,5/17/2010,Consultancy,International Sectors Group - UK Trade and Investments,FOREIGN AND COMMONWEALTH OFFICE (FCO),130192,"3,146.59"
UK Trade and Investment,UK Trade and Investment Programme,5/17/2010,Scheme Management Charges,Regional Directorate - UK Trade and Investments,WEST MIDLANDS INTERNATIONAL TRADE LLP,131701,"2,719.02"
UK Trade and Investment,UK Trade and Investment Programme,5/17/2010,Development Cost - Website (AUC) - Clearing Account,Strategy and Human Resources Group - UK Trade and Investments,VENN GROUP LTD,131683,564
UK Trade and Investment,UK Trade and Investment Programme,5/18/2010,Basic Grants,International Sectors Group - UK Trade and Investments,NAR GROUP LTD,131733,"1,000.00"
UK Trade and Investment,UK Trade and Investment Programme,5/18/2010,Basic Grants,International Sectors Group - UK Trade and Investments,ECOSCENTRIC LTD,131736,"1,000.00"
UK Trade and Investment,UK Trade and Investment Programme,5/18/2010,Basic Grants,International Sectors Group - UK Trade and Investments,TURFTRAX COURSE SERVICES LTD,131731,"1,000.00"
UK Trade and Investment,UK Trade and Investment Programme,5/18/2010,Basic Grants,International Sectors Group - UK Trade and Investments,PIL MEMBRANES LTD,131737,"1,000.00"
UK Trade and Investment,UK Trade and Investment Programme,5/18/2010,Basic Grants,International Sectors Group - UK Trade and Investments,FAIRMOUNT WEATHER SYSTEMS LTD,131735,"1,000.00"
UK Trade and Investment,UK Trade and Investment Programme,5/18/2010,Basic Grants,International Sectors Group - UK Trade and Investments,LEEMA ELECTRO ACOUSTICS LTD,131739,"1,000.00"
UK Trade and Investment,UK Trade and Investment Programme,5/18/2010,Basic Grants,International Sectors Group - UK Trade and Investments,A H SPARES LTD,131734,"1,000.00"
UK Trade and Investment,UK Trade and Investment Programme,5/18/2010,Basic Grants,International Sectors Group - UK Trade and Investments,RICHARDS BROS (WIRE WHEELS) LTD,131732,"1,000.00"
UK Trade and Investment,UK Trade and Investment Programme,5/18/2010,Basic Grants,International Sectors Group - UK Trade and Investments,L G HARRIS & CO LTD,131738,"1,000.00"
UK Trade and Investment,UK Trade and Investment Programme,5/18/2010,Salaries and Wages,Marketing Directorate - UK Trade and Investments,ADECCO UK LTD,131726,563.64
UK Trade and Investment,UK Trade and Investment Programme,5/18/2010,Salaries and Wages,Marketing Directorate - UK Trade and Investments,ADECCO UK LTD,131726,-563.64
UK Trade and Investment,UK Trade and Investment Programme,5/18/2010,Salaries and Wages,Marketing Directorate - UK Trade and Investments,ADECCO UK LTD,131726,575.89
UK Trade and Investment,UK Trade and Investment Programme,5/18/2010,Travel and Subsistence O'seas,International Sectors Group - UK Trade and Investments,"Personal Expense, Name Witheld",504931,"1,253.11"
UK Trade and Investment,UK Trade and Investment Programme,5/18/2010,Travel and Subsistence O'seas,Regional Directorate - UK Trade and Investments,NIGEL QUINEY PUBLICATIONS LTD,131745,600
UK Trade and Investment,UK Trade and Investment Programme,5/18/2010,Travel and Subsistence O'seas,Regional Directorate - UK Trade and Investments,PIL MEMBRANES LTD,131747,750
UK Trade and Investment,UK Trade and Investment Programme,5/18/2010,Travel and Subsistence O'seas,Regional Directorate - UK Trade and Investments,LETS CELL IT.COM LTD,131744,500
UK Trade and Investment,UK Trade and Investment Programme,5/18/2010,Travel and Subsistence O'seas,Strategy and Human Resources Group - UK Trade and Investments,FOREIGN AND COMMONWEALTH OFFICE (FCO),131743,"1,824.44"
UK Trade and Investment,UK Trade and Investment Programme,5/18/2010,Advertising,Regional Directorate - UK Trade and Investments,HULL URBAN REGENERATION CO LTD,131749,565
UK Trade and Investment,UK Trade and Investment Programme,5/18/2010,Authoring and Copywriting Costs,Marketing Directorate - UK Trade and Investments,ARCADIAN WORLD LTD,131742,850
UK Trade and Investment,UK Trade and Investment Programme,5/18/2010,Research and Development Costs,Business Group - UK Trade and Investments,FUSE 8 LTD,131728,"4,450.00"
UK Trade and Investment,UK Trade and Investment Programme,5/18/2010,Research and Development Costs,Business Group - UK Trade and Investments,PERA INNOVATION LTD,131730,"45,187.16"
UK Trade and Investment,UK Trade and Investment Programme,5/18/2010,Scheme Management Charges,Regional Directorate - UK Trade and Investments,MEDIVANCE INSTRUMENTS LTD,131619,"1,000.00"
UK Trade and Investment,UK Trade and Investment Programme,5/18/2010,Scheme Management Charges,Regional Directorate - UK Trade and Investments,DECORATED SHED LTD,131620,"1,262.40"
UK Trade and Investment,UK Trade and Investment Programme,5/18/2010,Scheme Management Charges,Regional Directorate - UK Trade and Investments,EAR TO THE GROUND (UK) LTD,131624,874.41
UK Trade and Investment,UK Trade and Investment Programme,5/18/2010,Scheme Management Charges,Regional Directorate - UK Trade and Investments,ECO TECHNICAL SERVICES LTD,131626,"1,000.00"
UK Trade and Investment,UK Trade and Investment Programme,5/18/2010,Scheme Management Charges,Regional Directorate - UK Trade and Investments,DRFP LTD,131628,"1,148.20"
UK Trade and Investment,UK Trade and Investment Programme,5/18/2010,Scheme Management Charges,Regional Directorate - UK Trade and Investments,MAYBO LTD,131625,"1,500.00"
UK Trade and Investment,UK Trade and Investment Programme,5/18/2010,Scheme Management Charges,Regional Directorate - UK Trade and Investments,RICHARD FENWICK,131621,533.12
UK Trade and Investment,UK Trade and Investment Programme,5/19/2010,Basic Grants,International Sectors Group - UK Trade and Investments,BANICO LTD,131771,"1,000.00"
UK Trade and Investment,UK Trade and Investment Programme,5/19/2010,Basic Grants,International Sectors Group - UK Trade and Investments,MALCOLM DOUGHTY,131773,"1,000.00"
UK Trade and Investment,UK Trade and Investment Programme,5/19/2010,Basic Grants,International Sectors Group - UK Trade and Investments,MILLS LTD,131772,"1,000.00"
UK Trade and Investment,UK Trade and Investment Programme,5/19/2010,Basic Grants,International Sectors Group - UK Trade and Investments,PS8 LTD,131779,"1,400.00"
UK Trade and Investment,UK Trade and Investment Programme,5/19/2010,Basic Grants,International Sectors Group - UK Trade and Investments,TURNKEY CONSULTING (UK) LTD,131784,"1,000.00"
UK Trade and Investment,UK Trade and Investment Programme,5/19/2010,Basic Grants,International Sectors Group - UK Trade and Investments,BIRMINGHAM CHAMBER OF COMMERCE & INDUSTRY,131785,"21,000.00"
UK Trade and Investment,UK Trade and Investment Programme,5/19/2010,Sponsors Grants,International Sectors Group - UK Trade and Investments,PS8 LTD,131780,"6,110.00"
UK Trade and Investment,UK Trade and Investment Programme,5/19/2010,Sponsors Grants,International Sectors Group - UK Trade and Investments,BIRMINGHAM CHAMBER OF COMMERCE & INDUSTRY,131786,"4,935.00"
UK Trade and Investment,UK Trade and Investment Programme,5/19/2010,Sponsors Grants,International Sectors Group - UK Trade and Investments,INTELLECT,131770,"9,165.00"
UK Trade and Investment,UK Trade and Investment Programme,5/19/2010,Travel and Subsistence O'seas,Regional Directorate - UK Trade and Investments,NORTH EAST REGIONAL INTERNATIONAL TRADE OFFICE LTD,131775,711.81
UK Trade and Investment,UK Trade and Investment Programme,5/19/2010,Travel and Subsistence O'seas,Regional Directorate - UK Trade and Investments,BUSINESS AND ENTERPRISE NORTH EAST LTD,131778,665
UK Trade and Investment,UK Trade and Investment Programme,5/19/2010,Training - General,Regional Directorate - UK Trade and Investments,THE BRITISH CHAMBERS OF COMMERCE,131650,"1,372.80"
UK Trade and Investment,UK Trade and Investment Programme,5/19/2010,Event Management,International Sectors Group - UK Trade and Investments,BUSINESS TO BUSINESS EXHIBITIONS LTD,131754,"5,200.00"
UK Trade and Investment,UK Trade and Investment Programme,5/19/2010,Event Management,Strategy and Human Resources Group - UK Trade and Investments,CITY INN LEEDS,131787,765
UK Trade and Investment,UK Trade and Investment Programme,5/19/2010,Event Management,Strategy and Human Resources Group - UK Trade and Investments,CITY INN LEEDS,131787,-765
UK Trade and Investment,UK Trade and Investment Programme,5/19/2010,Event Management,Strategy and Human Resources Group - UK Trade and Investments,CITY INN LEEDS,131787,765.95
UK Trade and Investment,UK Trade and Investment Programme,5/19/2010,Event Management,International Sectors Group - UK Trade and Investments,VENTURE MARKETING GROUP LTD,131762,"6,250.00"
UK Trade and Investment,UK Trade and Investment Programme,5/19/2010,Photographic Services,Marketing Directorate - UK Trade and Investments,GETTY IMAGES INTERNATIONAL LTD,131790,700
UK Trade and Investment,UK Trade and Investment Programme,5/19/2010,Design Services,International Sectors Group - UK Trade and Investments,BIOPARTNER. CO. UK LTD,131763,"1,000.00"
UK Trade and Investment,UK Trade and Investment Programme,5/19/2010,Media and Press Services,Regional Directorate - UK Trade and Investments,COI COMMUNICATIONS,131753,"4,357.95"
UK Trade and Investment,UK Trade and Investment Programme,5/19/2010,Media and Press Services,Regional Directorate - UK Trade and Investments,COI COMMUNICATIONS,131753,"2,863.43"
UK Trade and Investment,UK Trade and Investment Programme,5/19/2010,Scheme Management Charges,Regional Directorate - UK Trade and Investments,WEST MIDLANDS INTERNATIONAL TRADE LLP,131783,"1,305.00"
UK Trade and Investment,UK Trade and Investment Programme,5/19/2010,Scheme Management Charges,Regional Directorate - UK Trade and Investments,THE BRITISH CHAMBERS OF COMMERCE,131755,"100,000.00"
UK Trade and Investment,UK Trade and Investment Programme,5/19/2010,Scheme Management Charges,Regional Directorate - UK Trade and Investments,THE BRITISH CHAMBERS OF COMMERCE,131757,"15,500.00"
UK Trade and Investment,UK Trade and Investment Programme,5/19/2010,Scheme Management Charges,Regional Directorate - UK Trade and Investments,THE BRITISH CHAMBERS OF COMMERCE,131758,"99,416.00"
UK Trade and Investment,UK Trade and Investment Programme,5/19/2010,Scheme Management Charges,Regional Directorate - UK Trade and Investments,THE BRITISH CHAMBERS OF COMMERCE,131759,"24,500.00"
UK Trade and Investment,UK Trade and Investment Programme,5/19/2010,Scheme Management Charges,Regional Directorate - UK Trade and Investments,AMEY COMMUNITY LTD,131760,"2,815.54"
UK Trade and Investment,UK Trade and Investment Programme,5/19/2010,IT software and licences,IT and Finance Group - UK Trade and Investments,ORACLE CORPORATION UK LTD,131751,"3,029.19"
UK Trade and Investment,UK Trade and Investment Programme,5/20/2010,Fees and Charges,Regional Directorate - UK Trade and Investments,CEGOS (UK) LTD,131802,"1,275.65"
UK Trade and Investment,UK Trade and Investment Programme,5/20/2010,Basic Grants,International Sectors Group - UK Trade and Investments,VECTORCOMMAND LTD,131804,"1,000.00"
UK Trade and Investment,UK Trade and Investment Programme,5/20/2010,Basic Grants,International Sectors Group - UK Trade and Investments,ATTENBOROUGH BRUSH LTD,131807,"1,000.00"
UK Trade and Investment,UK Trade and Investment Programme,5/20/2010,Basic Grants,International Sectors Group - UK Trade and Investments,MTI LTD,131811,"1,000.00"
UK Trade and Investment,UK Trade and Investment Programme,5/20/2010,Basic Grants,International Sectors Group - UK Trade and Investments,J J SMITH & CO ( WOODWORKING MACHINERY ) LTD,131808,"1,000.00"
UK Trade and Investment,UK Trade and Investment Programme,5/20/2010,Basic Grants,International Sectors Group - UK Trade and Investments,BIRMINGHAM CHAMBER OF COMMERCE & INDUSTRY,131814,"3,000.00"
UK Trade and Investment,UK Trade and Investment Programme,5/20/2010,Basic Grants,International Sectors Group - UK Trade and Investments,DURALOCK (UK) LTD,131806,"1,000.00"
UK Trade and Investment,UK Trade and Investment Programme,5/20/2010,Basic Grants,International Sectors Group - UK Trade and Investments,TPH MACHINE TOOLS LTD,131812,"1,000.00"
UK Trade and Investment,UK Trade and Investment Programme,5/20/2010,Basic Grants,International Sectors Group - UK Trade and Investments,CERI HAND GALLERY LTD,131805,"1,000.00"
UK Trade and Investment,UK Trade and Investment Programme,5/20/2010,Basic Grants,International Sectors Group - UK Trade and Investments,AWL IMAGES LTD,131813,"1,000.00"
UK Trade and Investment,UK Trade and Investment Programme,5/20/2010,Basic Grants,International Sectors Group - UK Trade and Investments,FRANKLITE LTD,131803,"1,000.00"
UK Trade and Investment,UK Trade and Investment Programme,5/20/2010,Basic Grants,International Sectors Group - UK Trade and Investments,BRITISH HOME ENHANCEMENT TRADE ASSOCIATION (BHETA),131776,"3,000.00"
UK Trade and Investment,UK Trade and Investment Programme,5/20/2010,Sponsors Grants,International Sectors Group - UK Trade and Investments,BIRMINGHAM CHAMBER OF COMMERCE & INDUSTRY,131815,705
UK Trade and Investment,UK Trade and Investment Programme,5/20/2010,Sponsors Grants,International Sectors Group - UK Trade and Investments,BRITISH HOME ENHANCEMENT TRADE ASSOCIATION (BHETA),131777,705
UK Trade and Investment,UK Trade and Investment Programme,5/20/2010,Travel and Subsistence O'seas,Regional Directorate - UK Trade and Investments,BIOLATRIS LTD,131823,500
UK Trade and Investment,UK Trade and Investment Programme,5/20/2010,Travel and Subsistence O'seas,Regional Directorate - UK Trade and Investments,FARSOUND ENGINEERING LTD,131796,595
UK Trade and Investment,UK Trade and Investment Programme,5/20/2010,Event Management,Defence and Security Organisation - UK Trade and Investments,ADS GROUP LTD,131791,"5,000.00"
UK Trade and Investment,UK Trade and Investment Programme,5/20/2010,Event Management,International Group - UK Trade and Investments,FCO SERVICES,131822,650
UK Trade and Investment,UK Trade and Investment Programme,5/20/2010,Venue Hire,Business Group - UK Trade and Investments,HESPERIA VICTORIA UK LTD T/A HESPERIA LONDON VICTORIA,131598,576.13
UK Trade and Investment,UK Trade and Investment Programme,5/20/2010,Speakers fees,Regional Directorate - UK Trade and Investments,S O SERVICES LTD,131825,"3,084.38"
UK Trade and Investment,UK Trade and Investment Programme,5/20/2010,Advertising,Defence and Security Organisation - UK Trade and Investments,FALCON COMMUNICATIONS LTD,131820,"3,190.00"
UK Trade and Investment,UK Trade and Investment Programme,5/20/2010,Advertising,Regional Directorate - UK Trade and Investments,EAST OF ENGLAND INTERNATIONAL LTD,131794,"1,000.00"
UK Trade and Investment,UK Trade and Investment Programme,5/20/2010,Sponsorship,Business Group - UK Trade and Investments,ENVESTORS LLP,131793,"12,500.00"
UK Trade and Investment,UK Trade and Investment Programme,5/20/2010,Sponsorship,Regional Directorate - UK Trade and Investments,NEWSCO INSIDER LTD,131594,"3,300.00"
UK Trade and Investment,UK Trade and Investment Programme,5/20/2010,Promotional Materials,Marketing Directorate - UK Trade and Investments,HONAV UK LTD,131809,"2,159.74"
UK Trade and Investment,UK Trade and Investment Programme,5/20/2010,Photographic Services,Marketing Directorate - UK Trade and Investments,GETTY IMAGES INTERNATIONAL LTD,131788,"2,300.00"
UK Trade and Investment,UK Trade and Investment Programme,5/20/2010,Outsourced Technical Support,International Sectors Group - UK Trade and Investments,KEPIER & COMPANY LTD,131756,"2,075.00"
UK Trade and Investment,UK Trade and Investment Programme,5/20/2010,Scheme Management Charges,Regional Directorate - UK Trade and Investments,NORTHSTAR MUSIC PUBLISHING LTD,131614,962.03
UK Trade and Investment,UK Trade and Investment Programme,5/20/2010,Scheme Management Charges,Regional Directorate - UK Trade and Investments,POOLEYS FLIGHT EQUIPMENT LTD,131615,"1,239.50"
UK Trade and Investment,UK Trade and Investment Programme,5/20/2010,Scheme Management Charges,Regional Directorate - UK Trade and Investments,CENTRAL SYSTEMS & AUTOMATION LTD,131711,784
UK Trade and Investment,UK Trade and Investment Programme,5/20/2010,Scheme Management Charges,Regional Directorate - UK Trade and Investments,SUB ZERO TECHNOLOGY LTD,131712,"1,050.00"
UK Trade and Investment,UK Trade and Investment Programme,5/20/2010,Scheme Management Charges,Regional Directorate - UK Trade and Investments,THE TRUSTLAND GROUP LTD,131717,950.47
UK Trade and Investment,UK Trade and Investment Programme,5/20/2010,Scheme Management Charges,Regional Directorate - UK Trade and Investments,SLIC TRAINING LTD,131504,"1,150.04"
UK Trade and Investment,UK Trade and Investment Programme,5/20/2010,Scheme Management Charges,Regional Directorate - UK Trade and Investments,SCIENCE & HUMANITIES EDUCATION,131616,"1,500.00"
UK Trade and Investment,UK Trade and Investment Programme,5/20/2010,Scheme Management Charges,Regional Directorate - UK Trade and Investments,THE STICKER FACTORY,131613,893.42
UK Trade and Investment,UK Trade and Investment Programme,5/20/2010,Scheme Management Charges,Regional Directorate - UK Trade and Investments,RUPERT SANDERSON,131715,737.98
UK Trade and Investment,UK Trade and Investment Programme,5/20/2010,Scheme Management Charges,Regional Directorate - UK Trade and Investments,RUPERT SANDERSON,131715,762.02
UK Trade and Investment,UK Trade and Investment Programme,5/20/2010,Scheme Management Charges,Regional Directorate - UK Trade and Investments,MIKROFILL,131719,626
UK Trade and Investment,UK Trade and Investment Programme,5/20/2010,Scheme Management Charges,Regional Directorate - UK Trade and Investments,SCIENTIFIC & CHEMICAL SUPPLIES LTD,131723,"1,500.00"
UK Trade and Investment,UK Trade and Investment Programme,5/20/2010,Scheme Management Charges,Regional Directorate - UK Trade and Investments,H2O LTD,131718,"1,500.00"
UK Trade and Investment,UK Trade and Investment Programme,5/20/2010,Development Cost - Website (AUC) - Clearing Account,Strategy and Human Resources Group - UK Trade and Investments,MORGAN HUNT PUBLIC SECTOR LTD,131818,752
UK Trade and Investment,UK Trade and Investment Programme,5/20/2010,Development Cost - Website (AUC) - Clearing Account,Strategy and Human Resources Group - UK Trade and Investments,MORGAN HUNT PUBLIC SECTOR LTD,131810,940
UK Trade and Investment,UK Trade and Investment Programme,5/21/2010,Basic Grants,International Sectors Group - UK Trade and Investments,DANLERS LTD,131843,"1,000.00"
UK Trade and Investment,UK Trade and Investment Programme,5/21/2010,Basic Grants,International Sectors Group - UK Trade and Investments,MEDIVANCE INSTRUMENTS LTD,131842,"1,000.00"
UK Trade and Investment,UK Trade and Investment Programme,5/21/2010,Basic Grants,International Sectors Group - UK Trade and Investments,RJ FARLEY LTD T/A UNI-LOC PRODUCTS,131841,"1,000.00"
UK Trade and Investment,UK Trade and Investment Programme,5/21/2010,Basic Grants,International Sectors Group - UK Trade and Investments,HISTORIC IMAGE (T/A ANCESTORS OF DOVER LTD),131840,"1,000.00"
UK Trade and Investment,UK Trade and Investment Programme,5/21/2010,Basic Grants,International Sectors Group - UK Trade and Investments,AMPETRONIC LTD,131838,"1,000.00"
UK Trade and Investment,UK Trade and Investment Programme,5/21/2010,Salaries and Wages,Marketing Directorate - UK Trade and Investments,JAMIE OLIVER,131859,"1,250.00"
UK Trade and Investment,UK Trade and Investment Programme,5/21/2010,Salaries and Wages,Marketing Directorate - UK Trade and Investments,FOREIGN AND COMMONWEALTH OFFICE (FCO),130966,"2,321.54"
UK Trade and Investment,UK Trade and Investment Programme,5/21/2010,Salaries and Wages,Marketing Directorate - UK Trade and Investments,FOREIGN AND COMMONWEALTH OFFICE (FCO),130967,"1,135.06"
UK Trade and Investment,UK Trade and Investment Programme,5/21/2010,Staff Consultants,International Group - UK Trade and Investments,FOREIGN AND COMMONWEALTH OFFICE (FCO),130814,"1,222.70"
UK Trade and Investment,UK Trade and Investment Programme,5/21/2010,Travel and Subsistence UK,Defence and Security Organisation - UK Trade and Investments,FOREIGN AND COMMONWEALTH OFFICE (FCO),131143,"1,748.70"
UK Trade and Investment,UK Trade and Investment Programme,5/21/2010,Travel and Subsistence UK,International Sectors Group - UK Trade and Investments,FOREIGN AND COMMONWEALTH OFFICE (FCO),130909,"1,346.67"
UK Trade and Investment,UK Trade and Investment Programme,5/21/2010,Travel and Subsistence UK,International Sectors Group - UK Trade and Investments,FOREIGN AND COMMONWEALTH OFFICE (FCO),131060,500
UK Trade and Investment,UK Trade and Investment Programme,5/21/2010,Travel and Subsistence UK,International Sectors Group - UK Trade and Investments,FOREIGN AND COMMONWEALTH OFFICE (FCO),131061,500
UK Trade and Investment,UK Trade and Investment Programme,5/21/2010,Travel and Subsistence UK,International Sectors Group - UK Trade and Investments,FOREIGN AND COMMONWEALTH OFFICE (FCO),130909,"1,650.76"
UK Trade and Investment,UK Trade and Investment Programme,5/21/2010,Travel and Subsistence O'seas,Defence and Security Organisation - UK Trade and Investments,FOREIGN AND COMMONWEALTH OFFICE (FCO),130898,"3,038.33"
UK Trade and Investment,UK Trade and Investment Programme,5/21/2010,Travel and Subsistence O'seas,Defence and Security Organisation - UK Trade and Investments,FOREIGN AND COMMONWEALTH OFFICE (FCO),130792,"5,149.13"
UK Trade and Investment,UK Trade and Investment Programme,5/21/2010,Travel and Subsistence O'seas,Defence and Security Organisation - UK Trade and Investments,FOREIGN AND COMMONWEALTH OFFICE (FCO),130985,"1,619.92"
UK Trade and Investment,UK Trade and Investment Programme,5/21/2010,Travel and Subsistence O'seas,Defence and Security Organisation - UK Trade and Investments,FOREIGN AND COMMONWEALTH OFFICE (FCO),131006,"3,607.67"
UK Trade and Investment,UK Trade and Investment Programme,5/21/2010,Travel and Subsistence O'seas,Defence and Security Organisation - UK Trade and Investments,FOREIGN AND COMMONWEALTH OFFICE (FCO),131007,"2,237.42"
UK Trade and Investment,UK Trade and Investment Programme,5/21/2010,Travel and Subsistence O'seas,Defence and Security Organisation - UK Trade and Investments,FOREIGN AND COMMONWEALTH OFFICE (FCO),131008,"1,419.23"
UK Trade and Investment,UK Trade and Investment Programme,5/21/2010,Travel and Subsistence O'seas,Defence and Security Organisation - UK Trade and Investments,FOREIGN AND COMMONWEALTH OFFICE (FCO),131009,"1,402.57"
UK Trade and Investment,UK Trade and Investment Programme,5/21/2010,Travel and Subsistence O'seas,Defence and Security Organisation - UK Trade and Investments,FOREIGN AND COMMONWEALTH OFFICE (FCO),131010,739.38
UK Trade and Investment,UK Trade and Investment Programme,5/21/2010,Travel and Subsistence O'seas,Defence and Security Organisation - UK Trade and Investments,FOREIGN AND COMMONWEALTH OFFICE (FCO),131017,"2,678.76"
UK Trade and Investment,UK Trade and Investment Programme,5/21/2010,Travel and Subsistence O'seas,Defence and Security Organisation - UK Trade and Investments,FOREIGN AND COMMONWEALTH OFFICE (FCO),131026,"3,257.02"
UK Trade and Investment,UK Trade and Investment Programme,5/21/2010,Travel and Subsistence O'seas,Defence and Security Organisation - UK Trade and Investments,FOREIGN AND COMMONWEALTH OFFICE (FCO),131050,"2,243.03"
UK Trade and Investment,UK Trade and Investment Programme,5/21/2010,Travel and Subsistence O'seas,Defence and Security Organisation - UK Trade and Investments,FOREIGN AND COMMONWEALTH OFFICE (FCO),131051,"2,388.17"
UK Trade and Investment,UK Trade and Investment Programme,5/21/2010,Travel and Subsistence O'seas,Defence and Security Organisation - UK Trade and Investments,FOREIGN AND COMMONWEALTH OFFICE (FCO),131144,"1,175.77"
UK Trade and Investment,UK Trade and Investment Programme,5/21/2010,Travel and Subsistence O'seas,Defence and Security Organisation - UK Trade and Investments,FOREIGN AND COMMONWEALTH OFFICE (FCO),131189,"5,986.96"
UK Trade and Investment,UK Trade and Investment Programme,5/21/2010,Travel and Subsistence O'seas,Defence and Security Organisation - UK Trade and Investments,FOREIGN AND COMMONWEALTH OFFICE (FCO),130663,"3,639.13"
UK Trade and Investment,UK Trade and Investment Programme,5/21/2010,Travel and Subsistence O'seas,Defence and Security Organisation - UK Trade and Investments,FOREIGN AND COMMONWEALTH OFFICE (FCO),130690,"9,500.00"
UK Trade and Investment,UK Trade and Investment Programme,5/21/2010,Travel and Subsistence O'seas,Defence and Security Organisation - UK Trade and Investments,FOREIGN AND COMMONWEALTH OFFICE (FCO),130756,"2,013.60"
UK Trade and Investment,UK Trade and Investment Programme,5/21/2010,Travel and Subsistence O'seas,International Group - UK Trade and Investments,FOREIGN AND COMMONWEALTH OFFICE (FCO),131188,991.49
UK Trade and Investment,UK Trade and Investment Programme,5/21/2010,Travel and Subsistence O'seas,International Sectors Group - UK Trade and Investments,FOREIGN AND COMMONWEALTH OFFICE (FCO),130953,800.02
UK Trade and Investment,UK Trade and Investment Programme,5/21/2010,Travel and Subsistence O'seas,International Sectors Group - UK Trade and Investments,FOREIGN AND COMMONWEALTH OFFICE (FCO),130656,-827.76
UK Trade and Investment,UK Trade and Investment Programme,5/21/2010,Travel and Subsistence O'seas,International Sectors Group - UK Trade and Investments,FOREIGN AND COMMONWEALTH OFFICE (FCO),130910,800.02
UK Trade and Investment,UK Trade and Investment Programme,5/21/2010,Travel and Subsistence O'seas,International Sectors Group - UK Trade and Investments,FOREIGN AND COMMONWEALTH OFFICE (FCO),130911,800.02
UK Trade and Investment,UK Trade and Investment Programme,5/21/2010,Travel and Subsistence O'seas,International Sectors Group - UK Trade and Investments,FOREIGN AND COMMONWEALTH OFFICE (FCO),130912,800.02
UK Trade and Investment,UK Trade and Investment Programme,5/21/2010,Travel and Subsistence O'seas,International Sectors Group - UK Trade and Investments,FOREIGN AND COMMONWEALTH OFFICE (FCO),130913,800.02
UK Trade and Investment,UK Trade and Investment Programme,5/21/2010,Travel and Subsistence O'seas,International Sectors Group - UK Trade and Investments,FOREIGN AND COMMONWEALTH OFFICE (FCO),130914,800.02
UK Trade and Investment,UK Trade and Investment Programme,5/21/2010,Travel and Subsistence O'seas,International Sectors Group - UK Trade and Investments,FOREIGN AND COMMONWEALTH OFFICE (FCO),130915,800.02
UK Trade and Investment,UK Trade and Investment Programme,5/21/2010,Travel and Subsistence O'seas,International Sectors Group - UK Trade and Investments,FOREIGN AND COMMONWEALTH OFFICE (FCO),130916,"1,600.03"
UK Trade and Investment,UK Trade and Investment Programme,5/21/2010,Travel and Subsistence O'seas,International Sectors Group - UK Trade and Investments,FOREIGN AND COMMONWEALTH OFFICE (FCO),130954,800.02
UK Trade and Investment,UK Trade and Investment Programme,5/21/2010,Travel and Subsistence O'seas,International Sectors Group - UK Trade and Investments,FOREIGN AND COMMONWEALTH OFFICE (FCO),130955,772.01
UK Trade and Investment,UK Trade and Investment Programme,5/21/2010,Travel and Subsistence O'seas,International Sectors Group - UK Trade and Investments,FOREIGN AND COMMONWEALTH OFFICE (FCO),130956,800.02
UK Trade and Investment,UK Trade and Investment Programme,5/21/2010,Travel and Subsistence O'seas,International Sectors Group - UK Trade and Investments,FOREIGN AND COMMONWEALTH OFFICE (FCO),130962,800.02
UK Trade and Investment,UK Trade and Investment Programme,5/21/2010,Travel and Subsistence O'seas,International Sectors Group - UK Trade and Investments,FOREIGN AND COMMONWEALTH OFFICE (FCO),130965,827.76
UK Trade and Investment,UK Trade and Investment Programme,5/21/2010,Travel and Subsistence O'seas,International Sectors Group - UK Trade and Investments,FOREIGN AND COMMONWEALTH OFFICE (FCO),131069,"1,528.03"
UK Trade and Investment,UK Trade and Investment Programme,5/21/2010,Travel and Subsistence O'seas,International Sectors Group - UK Trade and Investments,FOREIGN AND COMMONWEALTH OFFICE (FCO),130661,800.02
UK Trade and Investment,UK Trade and Investment Programme,5/21/2010,Travel and Subsistence O'seas,Regional Directorate - UK Trade and Investments,NORTH EAST REGIONAL INTERNATIONAL TRADE OFFICE LTD,131851,"8,000.00"
UK Trade and Investment,UK Trade and Investment Programme,5/21/2010,Travel and Subsistence O'seas,Regional Directorate - UK Trade and Investments,NORTH EAST REGIONAL INTERNATIONAL TRADE OFFICE LTD,131851,"1,000.00"
UK Trade and Investment,UK Trade and Investment Programme,5/21/2010,Travel and Subsistence O'seas,Strategy and Human Resources Group - UK Trade and Investments,FOREIGN AND COMMONWEALTH OFFICE (FCO),130964,500
UK Trade and Investment,UK Trade and Investment Programme,5/21/2010,Travel and Subsistence O'seas,Strategy and Human Resources Group - UK Trade and Investments,FOREIGN AND COMMONWEALTH OFFICE (FCO),131078,"3,873.34"
UK Trade and Investment,UK Trade and Investment Programme,5/21/2010,Travel and Subsistence O'seas,Strategy and Human Resources Group - UK Trade and Investments,FOREIGN AND COMMONWEALTH OFFICE (FCO),130823,"3,265.15"
UK Trade and Investment,UK Trade and Investment Programme,5/21/2010,Travel and Subsistence O'seas,Strategy and Human Resources Group - UK Trade and Investments,FOREIGN AND COMMONWEALTH OFFICE (FCO),131181,"1,794.17"
UK Trade and Investment,UK Trade and Investment Programme,5/21/2010,Travel and Subsistence O'seas,Strategy and Human Resources Group - UK Trade and Investments,FOREIGN AND COMMONWEALTH OFFICE (FCO),130894,"1,818.41"
UK Trade and Investment,UK Trade and Investment Programme,5/21/2010,Travel and Subsistence O'seas,Strategy and Human Resources Group - UK Trade and Investments,FOREIGN AND COMMONWEALTH OFFICE (FCO),130671,"1,108.69"
UK Trade and Investment,UK Trade and Investment Programme,5/21/2010,Travel and Subsistence O'seas,Strategy and Human Resources Group - UK Trade and Investments,FOREIGN AND COMMONWEALTH OFFICE (FCO),130672,859.68
UK Trade and Investment,UK Trade and Investment Programme,5/21/2010,Travel and Subsistence O'seas,Strategy and Human Resources Group - UK Trade and Investments,FOREIGN AND COMMONWEALTH OFFICE (FCO),130692,"2,499.82"
UK Trade and Investment,UK Trade and Investment Programme,5/21/2010,Travel and Subsistence O'seas,Strategy and Human Resources Group - UK Trade and Investments,FOREIGN AND COMMONWEALTH OFFICE (FCO),130744,"6,920.30"
UK Trade and Investment,UK Trade and Investment Programme,5/21/2010,Travel and Subsistence O'seas,Strategy and Human Resources Group - UK Trade and Investments,FOREIGN AND COMMONWEALTH OFFICE (FCO),130745,970.45
UK Trade and Investment,UK Trade and Investment Programme,5/21/2010,Travel and Subsistence O'seas,Strategy and Human Resources Group - UK Trade and Investments,FOREIGN AND COMMONWEALTH OFFICE (FCO),130751,"2,500.00"
UK Trade and Investment,UK Trade and Investment Programme,5/21/2010,Travel and Subsistence O'seas,Strategy and Human Resources Group - UK Trade and Investments,FOREIGN AND COMMONWEALTH OFFICE (FCO),130757,793.63
UK Trade and Investment,UK Trade and Investment Programme,5/21/2010,Travel and Subsistence O'seas,Strategy and Human Resources Group - UK Trade and Investments,FOREIGN AND COMMONWEALTH OFFICE (FCO),130763,655.61
UK Trade and Investment,UK Trade and Investment Programme,5/21/2010,Travel and Subsistence O'seas,Strategy and Human Resources Group - UK Trade and Investments,FOREIGN AND COMMONWEALTH OFFICE (FCO),130627,"1,682.52"
UK Trade and Investment,UK Trade and Investment Programme,5/21/2010,Entertainment UK,International Sectors Group - UK Trade and Investments,FOREIGN AND COMMONWEALTH OFFICE (FCO),130534,"1,172.69"
UK Trade and Investment,UK Trade and Investment Programme,5/21/2010,Entertainment O'Seas,International Group - UK Trade and Investments,FOREIGN AND COMMONWEALTH OFFICE (FCO),131072,539.58
UK Trade and Investment,UK Trade and Investment Programme,5/21/2010,Entertainment O'Seas,International Group - UK Trade and Investments,FOREIGN AND COMMONWEALTH OFFICE (FCO),131073,"1,499.36"
UK Trade and Investment,UK Trade and Investment Programme,5/21/2010,Entertainment O'Seas,Olympics Unit - UK Trade and Investments,FOREIGN AND COMMONWEALTH OFFICE (FCO),130816,"1,746.92"
UK Trade and Investment,UK Trade and Investment Programme,5/21/2010,Entertainment O'Seas,Olympics Unit - UK Trade and Investments,FOREIGN AND COMMONWEALTH OFFICE (FCO),130818,"2,419.59"
UK Trade and Investment,UK Trade and Investment Programme,5/21/2010,Entertainment O'Seas,Olympics Unit - UK Trade and Investments,FOREIGN AND COMMONWEALTH OFFICE (FCO),130537,817.43
UK Trade and Investment,UK Trade and Investment Programme,5/21/2010,Entertainment O'Seas,Regional Directorate - UK Trade and Investments,FOREIGN AND COMMONWEALTH OFFICE (FCO),130810,701.35
UK Trade and Investment,UK Trade and Investment Programme,5/21/2010,Training - General,Regional Directorate - UK Trade and Investments,QED CONSULTING,131854,"3,675.04"
UK Trade and Investment,UK Trade and Investment Programme,5/21/2010,Training - General,Regional Directorate - UK Trade and Investments,GJ INTERNATIONAL LTD,131837,950
UK Trade and Investment,UK Trade and Investment Programme,5/21/2010,Training - General,Regional Directorate - UK Trade and Investments,GJ INTERNATIONAL LTD,131839,950
UK Trade and Investment,UK Trade and Investment Programme,5/21/2010,Conference and seminar fees,International Group - UK Trade and Investments,FOREIGN AND COMMONWEALTH OFFICE (FCO),131066,"1,649.87"
UK Trade and Investment,UK Trade and Investment Programme,5/21/2010,Rental of Accomodation,Strategy and Human Resources Group - UK Trade and Investments,FOREIGN AND COMMONWEALTH OFFICE (FCO),130994,"2,820.85"
UK Trade and Investment,UK Trade and Investment Programme,5/21/2010,Rental of Accomodation,Strategy and Human Resources Group - UK Trade and Investments,FOREIGN AND COMMONWEALTH OFFICE (FCO),131074,"2,032.24"
UK Trade and Investment,UK Trade and Investment Programme,5/21/2010,Rental of Accomodation,Strategy and Human Resources Group - UK Trade and Investments,FOREIGN AND COMMONWEALTH OFFICE (FCO),131539,"2,499.82"
UK Trade and Investment,UK Trade and Investment Programme,5/21/2010,Rental of Accomodation,Strategy and Human Resources Group - UK Trade and Investments,FOREIGN AND COMMONWEALTH OFFICE (FCO),130644,"1,750.00"
UK Trade and Investment,UK Trade and Investment Programme,5/21/2010,Event Management,Business Group - UK Trade and Investments,FOREIGN AND COMMONWEALTH OFFICE (FCO),130869,615.74
UK Trade and Investment,UK Trade and Investment Programme,5/21/2010,Event Management,Business Group - UK Trade and Investments,FOREIGN AND COMMONWEALTH OFFICE (FCO),130613,"1,133.52"
UK Trade and Investment,UK Trade and Investment Programme,5/21/2010,Event Management,Business Group - UK Trade and Investments,FOREIGN AND COMMONWEALTH OFFICE (FCO),130610,648.69
UK Trade and Investment,UK Trade and Investment Programme,5/21/2010,Event Management,Defence and Security Organisation - UK Trade and Investments,FOREIGN AND COMMONWEALTH OFFICE (FCO),131052,"1,015.61"
UK Trade and Investment,UK Trade and Investment Programme,5/21/2010,Event Management,International Group - UK Trade and Investments,FOREIGN AND COMMONWEALTH OFFICE (FCO),130826,"1,308.75"
UK Trade and Investment,UK Trade and Investment Programme,5/21/2010,Event Management,International Group - UK Trade and Investments,FOREIGN AND COMMONWEALTH OFFICE (FCO),130696,"3,700.00"
UK Trade and Investment,UK Trade and Investment Programme,5/21/2010,Event Management,International Sectors Group - UK Trade and Investments,FOREIGN AND COMMONWEALTH OFFICE (FCO),131857,"-2,727.13"
UK Trade and Investment,UK Trade and Investment Programme,5/21/2010,Event Management,International Sectors Group - UK Trade and Investments,FOREIGN AND COMMONWEALTH OFFICE (FCO),130844,642.79
UK Trade and Investment,UK Trade and Investment Programme,5/21/2010,Event Management,International Sectors Group - UK Trade and Investments,FOREIGN AND COMMONWEALTH OFFICE (FCO),130535,914.3
UK Trade and Investment,UK Trade and Investment Programme,5/21/2010,Event Management,International Sectors Group - UK Trade and Investments,FOREIGN AND COMMONWEALTH OFFICE (FCO),130683,576.96
UK Trade and Investment,UK Trade and Investment Programme,5/21/2010,Event Management,International Sectors Group - UK Trade and Investments,FOREIGN AND COMMONWEALTH OFFICE (FCO),130999,963.03
UK Trade and Investment,UK Trade and Investment Programme,5/21/2010,Event Management,International Sectors Group - UK Trade and Investments,FOREIGN AND COMMONWEALTH OFFICE (FCO),131032,"1,470.79"
UK Trade and Investment,UK Trade and Investment Programme,5/21/2010,Event Management,International Sectors Group - UK Trade and Investments,FOREIGN AND COMMONWEALTH OFFICE (FCO),131089,"2,234.13"
UK Trade and Investment,UK Trade and Investment Programme,5/21/2010,Event Management,International Sectors Group - UK Trade and Investments,FOREIGN AND COMMONWEALTH OFFICE (FCO),130820,768.27
UK Trade and Investment,UK Trade and Investment Programme,5/21/2010,Event Management,International Sectors Group - UK Trade and Investments,FOREIGN AND COMMONWEALTH OFFICE (FCO),130824,"1,651.78"
UK Trade and Investment,UK Trade and Investment Programme,5/21/2010,Event Management,International Sectors Group - UK Trade and Investments,FOREIGN AND COMMONWEALTH OFFICE (FCO),131162,"1,029.07"
UK Trade and Investment,UK Trade and Investment Programme,5/21/2010,Event Management,International Sectors Group - UK Trade and Investments,FOREIGN AND COMMONWEALTH OFFICE (FCO),131163,948.1
UK Trade and Investment,UK Trade and Investment Programme,5/21/2010,Event Management,International Sectors Group - UK Trade and Investments,FOREIGN AND COMMONWEALTH OFFICE (FCO),131186,819.51
UK Trade and Investment,UK Trade and Investment Programme,5/21/2010,Event Management,International Sectors Group - UK Trade and Investments,FOREIGN AND COMMONWEALTH OFFICE (FCO),131193,"3,484.47"
UK Trade and Investment,UK Trade and Investment Programme,5/21/2010,Event Management,International Sectors Group - UK Trade and Investments,FOREIGN AND COMMONWEALTH OFFICE (FCO),131195,"1,054.78"
UK Trade and Investment,UK Trade and Investment Programme,5/21/2010,Event Management,International Sectors Group - UK Trade and Investments,FOREIGN AND COMMONWEALTH OFFICE (FCO),131202,"8,522.91"
UK Trade and Investment,UK Trade and Investment Programme,5/21/2010,Event Management,International Sectors Group - UK Trade and Investments,FOREIGN AND COMMONWEALTH OFFICE (FCO),130847,"8,237.07"
UK Trade and Investment,UK Trade and Investment Programme,5/21/2010,Event Management,International Sectors Group - UK Trade and Investments,FOREIGN AND COMMONWEALTH OFFICE (FCO),130871,"1,274.00"
UK Trade and Investment,UK Trade and Investment Programme,5/21/2010,Event Management,International Sectors Group - UK Trade and Investments,FOREIGN AND COMMONWEALTH OFFICE (FCO),130883,"20,896.64"
UK Trade and Investment,UK Trade and Investment Programme,5/21/2010,Event Management,International Sectors Group - UK Trade and Investments,FOREIGN AND COMMONWEALTH OFFICE (FCO),130654,582.93
UK Trade and Investment,UK Trade and Investment Programme,5/21/2010,Event Management,International Sectors Group - UK Trade and Investments,FOREIGN AND COMMONWEALTH OFFICE (FCO),130655,536.88
UK Trade and Investment,UK Trade and Investment Programme,5/21/2010,Event Management,International Sectors Group - UK Trade and Investments,FOREIGN AND COMMONWEALTH OFFICE (FCO),130659,812.87
UK Trade and Investment,UK Trade and Investment Programme,5/21/2010,Event Management,International Sectors Group - UK Trade and Investments,FOREIGN AND COMMONWEALTH OFFICE (FCO),130538,"1,645.47"
UK Trade and Investment,UK Trade and Investment Programme,5/21/2010,Event Management,International Sectors Group - UK Trade and Investments,FOREIGN AND COMMONWEALTH OFFICE (FCO),130682,862.68
UK Trade and Investment,UK Trade and Investment Programme,5/21/2010,Event Management,International Sectors Group - UK Trade and Investments,FOREIGN AND COMMONWEALTH OFFICE (FCO),130683,800.7
UK Trade and Investment,UK Trade and Investment Programme,5/21/2010,Event Management,International Sectors Group - UK Trade and Investments,FOREIGN AND COMMONWEALTH OFFICE (FCO),130683,"1,000.00"
UK Trade and Investment,UK Trade and Investment Programme,5/21/2010,Event Management,International Sectors Group - UK Trade and Investments,FOREIGN AND COMMONWEALTH OFFICE (FCO),130544,860.47
UK Trade and Investment,UK Trade and Investment Programme,5/21/2010,Event Management,International Sectors Group - UK Trade and Investments,FOREIGN AND COMMONWEALTH OFFICE (FCO),130726,"3,892.62"
UK Trade and Investment,UK Trade and Investment Programme,5/21/2010,Event Management,International Sectors Group - UK Trade and Investments,FOREIGN AND COMMONWEALTH OFFICE (FCO),130546,"1,194.28"
UK Trade and Investment,UK Trade and Investment Programme,5/21/2010,Event Management,International Sectors Group - UK Trade and Investments,FOREIGN AND COMMONWEALTH OFFICE (FCO),130549,664.31
UK Trade and Investment,UK Trade and Investment Programme,5/21/2010,Event Management,International Sectors Group - UK Trade and Investments,FOREIGN AND COMMONWEALTH OFFICE (FCO),130563,"5,360.84"
UK Trade and Investment,UK Trade and Investment Programme,5/21/2010,Event Management,International Sectors Group - UK Trade and Investments,FOREIGN AND COMMONWEALTH OFFICE (FCO),130606,"1,879.08"
UK Trade and Investment,UK Trade and Investment Programme,5/21/2010,Event Management,International Sectors Group - UK Trade and Investments,FOREIGN AND COMMONWEALTH OFFICE (FCO),130621,"1,107.57"
UK Trade and Investment,UK Trade and Investment Programme,5/21/2010,Event Management,International Sectors Group - UK Trade and Investments,FOREIGN AND COMMONWEALTH OFFICE (FCO),130623,765.65
UK Trade and Investment,UK Trade and Investment Programme,5/21/2010,Event Management,International Sectors Group - UK Trade and Investments,CORPORATE TELEVISION NETWORKS LTD T/A CTN COMMUNICATIONS,131827,"5,000.00"
UK Trade and Investment,UK Trade and Investment Programme,5/21/2010,Event Management,Marketing Directorate - UK Trade and Investments,FOREIGN AND COMMONWEALTH OFFICE (FCO),131141,950.62
UK Trade and Investment,UK Trade and Investment Programme,5/21/2010,Event Management,Marketing Directorate - UK Trade and Investments,FOREIGN AND COMMONWEALTH OFFICE (FCO),130793,514.46
UK Trade and Investment,UK Trade and Investment Programme,5/21/2010,Event Management,Marketing Directorate - UK Trade and Investments,FOREIGN AND COMMONWEALTH OFFICE (FCO),130794,"5,142.56"
UK Trade and Investment,UK Trade and Investment Programme,5/21/2010,Event Management,Marketing Directorate - UK Trade and Investments,FOREIGN AND COMMONWEALTH OFFICE (FCO),130795,"3,999.64"
UK Trade and Investment,UK Trade and Investment Programme,5/21/2010,Event Management,Marketing Directorate - UK Trade and Investments,FOREIGN AND COMMONWEALTH OFFICE (FCO),130798,"1,215.96"
UK Trade and Investment,UK Trade and Investment Programme,5/21/2010,Event Management,Marketing Directorate - UK Trade and Investments,FOREIGN AND COMMONWEALTH OFFICE (FCO),130799,"1,273.43"
UK Trade and Investment,UK Trade and Investment Programme,5/21/2010,Event Management,Marketing Directorate - UK Trade and Investments,FOREIGN AND COMMONWEALTH OFFICE (FCO),130800,"3,477.26"
UK Trade and Investment,UK Trade and Investment Programme,5/21/2010,Event Management,Marketing Directorate - UK Trade and Investments,FOREIGN AND COMMONWEALTH OFFICE (FCO),130802,"2,757.34"
UK Trade and Investment,UK Trade and Investment Programme,5/21/2010,Event Management,Marketing Directorate - UK Trade and Investments,FOREIGN AND COMMONWEALTH OFFICE (FCO),130803,"1,360.47"
UK Trade and Investment,UK Trade and Investment Programme,5/21/2010,Event Management,Marketing Directorate - UK Trade and Investments,FOREIGN AND COMMONWEALTH OFFICE (FCO),130950,700.01
UK Trade and Investment,UK Trade and Investment Programme,5/21/2010,Event Management,Marketing Directorate - UK Trade and Investments,FOREIGN AND COMMONWEALTH OFFICE (FCO),130807,605.75
UK Trade and Investment,UK Trade and Investment Programme,5/21/2010,Event Management,Marketing Directorate - UK Trade and Investments,FOREIGN AND COMMONWEALTH OFFICE (FCO),130958,700.01
UK Trade and Investment,UK Trade and Investment Programme,5/21/2010,Event Management,Marketing Directorate - UK Trade and Investments,FOREIGN AND COMMONWEALTH OFFICE (FCO),130959,699.52
UK Trade and Investment,UK Trade and Investment Programme,5/21/2010,Event Management,Marketing Directorate - UK Trade and Investments,FOREIGN AND COMMONWEALTH OFFICE (FCO),130960,702.05
UK Trade and Investment,UK Trade and Investment Programme,5/21/2010,Event Management,Marketing Directorate - UK Trade and Investments,FOREIGN AND COMMONWEALTH OFFICE (FCO),130969,806.55
UK Trade and Investment,UK Trade and Investment Programme,5/21/2010,Event Management,Marketing Directorate - UK Trade and Investments,FOREIGN AND COMMONWEALTH OFFICE (FCO),130971,700.57
UK Trade and Investment,UK Trade and Investment Programme,5/21/2010,Event Management,Marketing Directorate - UK Trade and Investments,FOREIGN AND COMMONWEALTH OFFICE (FCO),130972,"1,200.00"
UK Trade and Investment,UK Trade and Investment Programme,5/21/2010,Event Management,Marketing Directorate - UK Trade and Investments,FOREIGN AND COMMONWEALTH OFFICE (FCO),131000,500
UK Trade and Investment,UK Trade and Investment Programme,5/21/2010,Event Management,Marketing Directorate - UK Trade and Investments,FOREIGN AND COMMONWEALTH OFFICE (FCO),131001,983.41
UK Trade and Investment,UK Trade and Investment Programme,5/21/2010,Event Management,Marketing Directorate - UK Trade and Investments,FOREIGN AND COMMONWEALTH OFFICE (FCO),131043,"3,426.15"
UK Trade and Investment,UK Trade and Investment Programme,5/21/2010,Event Management,Marketing Directorate - UK Trade and Investments,FOREIGN AND COMMONWEALTH OFFICE (FCO),131053,"1,636.56"
UK Trade and Investment,UK Trade and Investment Programme,5/21/2010,Event Management,Marketing Directorate - UK Trade and Investments,FOREIGN AND COMMONWEALTH OFFICE (FCO),131056,772.28
UK Trade and Investment,UK Trade and Investment Programme,5/21/2010,Event Management,Marketing Directorate - UK Trade and Investments,FOREIGN AND COMMONWEALTH OFFICE (FCO),131057,"4,000.00"
UK Trade and Investment,UK Trade and Investment Programme,5/21/2010,Event Management,Marketing Directorate - UK Trade and Investments,FOREIGN AND COMMONWEALTH OFFICE (FCO),131063,"1,585.09"
UK Trade and Investment,UK Trade and Investment Programme,5/21/2010,Event Management,Marketing Directorate - UK Trade and Investments,FOREIGN AND COMMONWEALTH OFFICE (FCO),131101,"9,834.13"
UK Trade and Investment,UK Trade and Investment Programme,5/21/2010,Event Management,Marketing Directorate - UK Trade and Investments,FOREIGN AND COMMONWEALTH OFFICE (FCO),131102,"3,278.04"
UK Trade and Investment,UK Trade and Investment Programme,5/21/2010,Event Management,Marketing Directorate - UK Trade and Investments,FOREIGN AND COMMONWEALTH OFFICE (FCO),131104,"2,622.43"
UK Trade and Investment,UK Trade and Investment Programme,5/21/2010,Event Management,Marketing Directorate - UK Trade and Investments,FOREIGN AND COMMONWEALTH OFFICE (FCO),131105,"3,278.04"
UK Trade and Investment,UK Trade and Investment Programme,5/21/2010,Event Management,Marketing Directorate - UK Trade and Investments,FOREIGN AND COMMONWEALTH OFFICE (FCO),131106,"3,605.85"
UK Trade and Investment,UK Trade and Investment Programme,5/21/2010,Event Management,Marketing Directorate - UK Trade and Investments,FOREIGN AND COMMONWEALTH OFFICE (FCO),131110,"2,758.19"
UK Trade and Investment,UK Trade and Investment Programme,5/21/2010,Event Management,Marketing Directorate - UK Trade and Investments,FOREIGN AND COMMONWEALTH OFFICE (FCO),131110,519.85
UK Trade and Investment,UK Trade and Investment Programme,5/21/2010,Event Management,Marketing Directorate - UK Trade and Investments,FOREIGN AND COMMONWEALTH OFFICE (FCO),131111,"1,311.22"
UK Trade and Investment,UK Trade and Investment Programme,5/21/2010,Event Management,Marketing Directorate - UK Trade and Investments,FOREIGN AND COMMONWEALTH OFFICE (FCO),131114,"1,405.89"
UK Trade and Investment,UK Trade and Investment Programme,5/21/2010,Event Management,Marketing Directorate - UK Trade and Investments,FOREIGN AND COMMONWEALTH OFFICE (FCO),131116,"1,180.11"
UK Trade and Investment,UK Trade and Investment Programme,5/21/2010,Event Management,Marketing Directorate - UK Trade and Investments,FOREIGN AND COMMONWEALTH OFFICE (FCO),131119,"1,064.15"
UK Trade and Investment,UK Trade and Investment Programme,5/21/2010,Event Management,Marketing Directorate - UK Trade and Investments,FOREIGN AND COMMONWEALTH OFFICE (FCO),131121,"1,042.42"
UK Trade and Investment,UK Trade and Investment Programme,5/21/2010,Event Management,Marketing Directorate - UK Trade and Investments,FOREIGN AND COMMONWEALTH OFFICE (FCO),131122,983.41
UK Trade and Investment,UK Trade and Investment Programme,5/21/2010,Event Management,Marketing Directorate - UK Trade and Investments,FOREIGN AND COMMONWEALTH OFFICE (FCO),131123,"2,998.10"
UK Trade and Investment,UK Trade and Investment Programme,5/21/2010,Event Management,Marketing Directorate - UK Trade and Investments,FOREIGN AND COMMONWEALTH OFFICE (FCO),131124,"1,199.11"
UK Trade and Investment,UK Trade and Investment Programme,5/21/2010,Event Management,Marketing Directorate - UK Trade and Investments,FOREIGN AND COMMONWEALTH OFFICE (FCO),131125,"4,111.11"
UK Trade and Investment,UK Trade and Investment Programme,5/21/2010,Event Management,Marketing Directorate - UK Trade and Investments,FOREIGN AND COMMONWEALTH OFFICE (FCO),131136,"1,943.44"
UK Trade and Investment,UK Trade and Investment Programme,5/21/2010,Event Management,Marketing Directorate - UK Trade and Investments,FOREIGN AND COMMONWEALTH OFFICE (FCO),131137,841.08
UK Trade and Investment,UK Trade and Investment Programme,5/21/2010,Event Management,Marketing Directorate - UK Trade and Investments,FOREIGN AND COMMONWEALTH OFFICE (FCO),131138,"2,124.18"
UK Trade and Investment,UK Trade and Investment Programme,5/21/2010,Event Management,Marketing Directorate - UK Trade and Investments,FOREIGN AND COMMONWEALTH OFFICE (FCO),131139,544.16
UK Trade and Investment,UK Trade and Investment Programme,5/21/2010,Event Management,Marketing Directorate - UK Trade and Investments,FOREIGN AND COMMONWEALTH OFFICE (FCO),131168,819.51
UK Trade and Investment,UK Trade and Investment Programme,5/21/2010,Event Management,Marketing Directorate - UK Trade and Investments,FOREIGN AND COMMONWEALTH OFFICE (FCO),131183,"2,485.63"
UK Trade and Investment,UK Trade and Investment Programme,5/21/2010,Event Management,Marketing Directorate - UK Trade and Investments,FOREIGN AND COMMONWEALTH OFFICE (FCO),131185,786.73
UK Trade and Investment,UK Trade and Investment Programme,5/21/2010,Event Management,Marketing Directorate - UK Trade and Investments,FOREIGN AND COMMONWEALTH OFFICE (FCO),131187,"2,728.61"
UK Trade and Investment,UK Trade and Investment Programme,5/21/2010,Event Management,Marketing Directorate - UK Trade and Investments,FOREIGN AND COMMONWEALTH OFFICE (FCO),131191,"1,059.12"
UK Trade and Investment,UK Trade and Investment Programme,5/21/2010,Event Management,Marketing Directorate - UK Trade and Investments,FOREIGN AND COMMONWEALTH OFFICE (FCO),131199,"1,639.02"
UK Trade and Investment,UK Trade and Investment Programme,5/21/2010,Event Management,Marketing Directorate - UK Trade and Investments,FOREIGN AND COMMONWEALTH OFFICE (FCO),131200,"1,132.00"
UK Trade and Investment,UK Trade and Investment Programme,5/21/2010,Event Management,Marketing Directorate - UK Trade and Investments,FOREIGN AND COMMONWEALTH OFFICE (FCO),131201,"2,212.68"
UK Trade and Investment,UK Trade and Investment Programme,5/21/2010,Event Management,Marketing Directorate - UK Trade and Investments,FOREIGN AND COMMONWEALTH OFFICE (FCO),131204,617
UK Trade and Investment,UK Trade and Investment Programme,5/21/2010,Event Management,Marketing Directorate - UK Trade and Investments,FOREIGN AND COMMONWEALTH OFFICE (FCO),130834,"3,573.90"
UK Trade and Investment,UK Trade and Investment Programme,5/21/2010,Event Management,Marketing Directorate - UK Trade and Investments,FOREIGN AND COMMONWEALTH OFFICE (FCO),130853,506.63
UK Trade and Investment,UK Trade and Investment Programme,5/21/2010,Event Management,Marketing Directorate - UK Trade and Investments,FOREIGN AND COMMONWEALTH OFFICE (FCO),130855,"3,599.63"
UK Trade and Investment,UK Trade and Investment Programme,5/21/2010,Event Management,Marketing Directorate - UK Trade and Investments,FOREIGN AND COMMONWEALTH OFFICE (FCO),130857,790.35
UK Trade and Investment,UK Trade and Investment Programme,5/21/2010,Event Management,Marketing Directorate - UK Trade and Investments,FOREIGN AND COMMONWEALTH OFFICE (FCO),130872,"7,185.83"
UK Trade and Investment,UK Trade and Investment Programme,5/21/2010,Event Management,Marketing Directorate - UK Trade and Investments,FOREIGN AND COMMONWEALTH OFFICE (FCO),130874,560.68
UK Trade and Investment,UK Trade and Investment Programme,5/21/2010,Event Management,Marketing Directorate - UK Trade and Investments,FOREIGN AND COMMONWEALTH OFFICE (FCO),130891,"3,214.87"
UK Trade and Investment,UK Trade and Investment Programme,5/21/2010,Event Management,Marketing Directorate - UK Trade and Investments,FOREIGN AND COMMONWEALTH OFFICE (FCO),130524,"2,006.20"
UK Trade and Investment,UK Trade and Investment Programme,5/21/2010,Event Management,Marketing Directorate - UK Trade and Investments,FOREIGN AND COMMONWEALTH OFFICE (FCO),130527,"3,500.00"
UK Trade and Investment,UK Trade and Investment Programme,5/21/2010,Event Management,Marketing Directorate - UK Trade and Investments,FOREIGN AND COMMONWEALTH OFFICE (FCO),130536,743.01
UK Trade and Investment,UK Trade and Investment Programme,5/21/2010,Event Management,Marketing Directorate - UK Trade and Investments,FOREIGN AND COMMONWEALTH OFFICE (FCO),130665,"1,517.36"
UK Trade and Investment,UK Trade and Investment Programme,5/21/2010,Event Management,Marketing Directorate - UK Trade and Investments,FOREIGN AND COMMONWEALTH OFFICE (FCO),130675,658.43
UK Trade and Investment,UK Trade and Investment Programme,5/21/2010,Event Management,Marketing Directorate - UK Trade and Investments,FOREIGN AND COMMONWEALTH OFFICE (FCO),130677,"5,000.00"
UK Trade and Investment,UK Trade and Investment Programme,5/21/2010,Event Management,Marketing Directorate - UK Trade and Investments,FOREIGN AND COMMONWEALTH OFFICE (FCO),130680,"1,285.57"
UK Trade and Investment,UK Trade and Investment Programme,5/21/2010,Event Management,Marketing Directorate - UK Trade and Investments,FOREIGN AND COMMONWEALTH OFFICE (FCO),130701,"1,101.26"
UK Trade and Investment,UK Trade and Investment Programme,5/21/2010,Event Management,Marketing Directorate - UK Trade and Investments,FOREIGN AND COMMONWEALTH OFFICE (FCO),130702,524.24
UK Trade and Investment,UK Trade and Investment Programme,5/21/2010,Event Management,Marketing Directorate - UK Trade and Investments,FOREIGN AND COMMONWEALTH OFFICE (FCO),130710,"1,106.91"
UK Trade and Investment,UK Trade and Investment Programme,5/21/2010,Event Management,Marketing Directorate - UK Trade and Investments,FOREIGN AND COMMONWEALTH OFFICE (FCO),130711,999.99
UK Trade and Investment,UK Trade and Investment Programme,5/21/2010,Event Management,Marketing Directorate - UK Trade and Investments,FOREIGN AND COMMONWEALTH OFFICE (FCO),130712,932.13
UK Trade and Investment,UK Trade and Investment Programme,5/21/2010,Event Management,Marketing Directorate - UK Trade and Investments,FOREIGN AND COMMONWEALTH OFFICE (FCO),130713,"1,864.26"
UK Trade and Investment,UK Trade and Investment Programme,5/21/2010,Event Management,Marketing Directorate - UK Trade and Investments,FOREIGN AND COMMONWEALTH OFFICE (FCO),130724,580.78
UK Trade and Investment,UK Trade and Investment Programme,5/21/2010,Event Management,Marketing Directorate - UK Trade and Investments,FOREIGN AND COMMONWEALTH OFFICE (FCO),130724,"8,200.00"
UK Trade and Investment,UK Trade and Investment Programme,5/21/2010,Event Management,Marketing Directorate - UK Trade and Investments,FOREIGN AND COMMONWEALTH OFFICE (FCO),130749,"1,488.23"
UK Trade and Investment,UK Trade and Investment Programme,5/21/2010,Event Management,Marketing Directorate - UK Trade and Investments,FOREIGN AND COMMONWEALTH OFFICE (FCO),130752,"1,262.64"
UK Trade and Investment,UK Trade and Investment Programme,5/21/2010,Event Management,Marketing Directorate - UK Trade and Investments,FOREIGN AND COMMONWEALTH OFFICE (FCO),130753,524.49
UK Trade and Investment,UK Trade and Investment Programme,5/21/2010,Event Management,Marketing Directorate - UK Trade and Investments,FOREIGN AND COMMONWEALTH OFFICE (FCO),130766,"3,933.65"
UK Trade and Investment,UK Trade and Investment Programme,5/21/2010,Event Management,Marketing Directorate - UK Trade and Investments,FOREIGN AND COMMONWEALTH OFFICE (FCO),130774,547.56
UK Trade and Investment,UK Trade and Investment Programme,5/21/2010,Event Management,Marketing Directorate - UK Trade and Investments,FOREIGN AND COMMONWEALTH OFFICE (FCO),130551,"10,000.00"
UK Trade and Investment,UK Trade and Investment Programme,5/21/2010,Event Management,Marketing Directorate - UK Trade and Investments,FOREIGN AND COMMONWEALTH OFFICE (FCO),130558,749.88
UK Trade and Investment,UK Trade and Investment Programme,5/21/2010,Event Management,Marketing Directorate - UK Trade and Investments,FOREIGN AND COMMONWEALTH OFFICE (FCO),130564,534.63
UK Trade and Investment,UK Trade and Investment Programme,5/21/2010,Event Management,Marketing Directorate - UK Trade and Investments,FOREIGN AND COMMONWEALTH OFFICE (FCO),130570,"1,966.29"
UK Trade and Investment,UK Trade and Investment Programme,5/21/2010,Event Management,Marketing Directorate - UK Trade and Investments,FOREIGN AND COMMONWEALTH OFFICE (FCO),130572,"2,611.49"
UK Trade and Investment,UK Trade and Investment Programme,5/21/2010,Event Management,Marketing Directorate - UK Trade and Investments,FOREIGN AND COMMONWEALTH OFFICE (FCO),130573,"2,039.06"
UK Trade and Investment,UK Trade and Investment Programme,5/21/2010,Event Management,Marketing Directorate - UK Trade and Investments,FOREIGN AND COMMONWEALTH OFFICE (FCO),130586,"2,533.16"
UK Trade and Investment,UK Trade and Investment Programme,5/21/2010,Event Management,Marketing Directorate - UK Trade and Investments,FOREIGN AND COMMONWEALTH OFFICE (FCO),130588,"12,665.82"
UK Trade and Investment,UK Trade and Investment Programme,5/21/2010,Event Management,Marketing Directorate - UK Trade and Investments,FOREIGN AND COMMONWEALTH OFFICE (FCO),130594,"1,942.09"
UK Trade and Investment,UK Trade and Investment Programme,5/21/2010,Event Management,Marketing Directorate - UK Trade and Investments,FOREIGN AND COMMONWEALTH OFFICE (FCO),130597,844.39
UK Trade and Investment,UK Trade and Investment Programme,5/21/2010,Event Management,Marketing Directorate - UK Trade and Investments,FOREIGN AND COMMONWEALTH OFFICE (FCO),130601,"2,299.27"
UK Trade and Investment,UK Trade and Investment Programme,5/21/2010,Event Management,Marketing Directorate - UK Trade and Investments,FOREIGN AND COMMONWEALTH OFFICE (FCO),130785,"1,178.01"
UK Trade and Investment,UK Trade and Investment Programme,5/21/2010,Event Management,Marketing Directorate - UK Trade and Investments,FOREIGN AND COMMONWEALTH OFFICE (FCO),130787,"2,454.19"
UK Trade and Investment,UK Trade and Investment Programme,5/21/2010,Event Management,Marketing Directorate - UK Trade and Investments,FOREIGN AND COMMONWEALTH OFFICE (FCO),130789,522.46
UK Trade and Investment,UK Trade and Investment Programme,5/21/2010,Event Management,Regional Directorate - UK Trade and Investments,FOREIGN AND COMMONWEALTH OFFICE (FCO),131013,573.22
UK Trade and Investment,UK Trade and Investment Programme,5/21/2010,Event Management,Strategy and Human Resources Group - UK Trade and Investments,FOREIGN AND COMMONWEALTH OFFICE (FCO),130877,"2,219.96"
UK Trade and Investment,UK Trade and Investment Programme,5/21/2010,Event Management,Strategy and Human Resources Group - UK Trade and Investments,FOREIGN AND COMMONWEALTH OFFICE (FCO),130745,"3,017.35"
UK Trade and Investment,UK Trade and Investment Programme,5/21/2010,Event Management,Strategy and Human Resources Group - UK Trade and Investments,FOREIGN AND COMMONWEALTH OFFICE (FCO),130747,"2,982.65"
UK Trade and Investment,UK Trade and Investment Programme,5/21/2010,Event Management,International Group - UK Trade and Investments,BRITISH JEWELLERY AND GIFTWARE FEDERATION,131853,"1,000.00"
UK Trade and Investment,UK Trade and Investment Programme,5/21/2010,Venue Hire,International Group - UK Trade and Investments,FOREIGN AND COMMONWEALTH OFFICE (FCO),131082,"1,199.49"
UK Trade and Investment,UK Trade and Investment Programme,5/21/2010,Venue Hire,Strategy and Human Resources Group - UK Trade and Investments,FOREIGN AND COMMONWEALTH OFFICE (FCO),130746,871.05
UK Trade and Investment,UK Trade and Investment Programme,5/21/2010,Catering,International Sectors Group - UK Trade and Investments,FOREIGN AND COMMONWEALTH OFFICE (FCO),131070,535.89
UK Trade and Investment,UK Trade and Investment Programme,5/21/2010,Catering,International Sectors Group - UK Trade and Investments,FOREIGN AND COMMONWEALTH OFFICE (FCO),130684,"1,108.83"
UK Trade and Investment,UK Trade and Investment Programme,5/21/2010,Catering,International Sectors Group - UK Trade and Investments,FOREIGN AND COMMONWEALTH OFFICE (FCO),130715,513.19
UK Trade and Investment,UK Trade and Investment Programme,5/21/2010,Other Transportation Hire,International Group - UK Trade and Investments,FOREIGN AND COMMONWEALTH OFFICE (FCO),131080,920
UK Trade and Investment,UK Trade and Investment Programme,5/21/2010,Courier Services,Marketing Directorate - UK Trade and Investments,FOREIGN AND COMMONWEALTH OFFICE (FCO),131108,983.41
UK Trade and Investment,UK Trade and Investment Programme,5/21/2010,Advertising,Marketing Directorate - UK Trade and Investments,FOREIGN AND COMMONWEALTH OFFICE (FCO),130970,"4,496.48"
UK Trade and Investment,UK Trade and Investment Programme,5/21/2010,Advertising,Marketing Directorate - UK Trade and Investments,FOREIGN AND COMMONWEALTH OFFICE (FCO),130970,"1,208.14"
UK Trade and Investment,UK Trade and Investment Programme,5/21/2010,Advertising,Marketing Directorate - UK Trade and Investments,FOREIGN AND COMMONWEALTH OFFICE (FCO),131062,"1,500.00"
UK Trade and Investment,UK Trade and Investment Programme,5/21/2010,Advertising,Marketing Directorate - UK Trade and Investments,FOREIGN AND COMMONWEALTH OFFICE (FCO),131198,"5,494.31"
UK Trade and Investment,UK Trade and Investment Programme,5/21/2010,Advertising,Marketing Directorate - UK Trade and Investments,FOREIGN AND COMMONWEALTH OFFICE (FCO),130843,"2,641.40"
UK Trade and Investment,UK Trade and Investment Programme,5/21/2010,Advertising,Marketing Directorate - UK Trade and Investments,FOREIGN AND COMMONWEALTH OFFICE (FCO),130850,"9,305.61"
UK Trade and Investment,UK Trade and Investment Programme,5/21/2010,Advertising,Marketing Directorate - UK Trade and Investments,FOREIGN AND COMMONWEALTH OFFICE (FCO),130772,"5,900.48"
UK Trade and Investment,UK Trade and Investment Programme,5/21/2010,Advertising,Marketing Directorate - UK Trade and Investments,FOREIGN AND COMMONWEALTH OFFICE (FCO),130773,547.56
UK Trade and Investment,UK Trade and Investment Programme,5/21/2010,Sponsorship,Marketing Directorate - UK Trade and Investments,FOREIGN AND COMMONWEALTH OFFICE (FCO),130688,514.18
UK Trade and Investment,UK Trade and Investment Programme,5/21/2010,Sponsorship,Marketing Directorate - UK Trade and Investments,FOREIGN AND COMMONWEALTH OFFICE (FCO),130689,588.19
UK Trade and Investment,UK Trade and Investment Programme,5/21/2010,Sponsorship,Marketing Directorate - UK Trade and Investments,FOREIGN AND COMMONWEALTH OFFICE (FCO),130693,"1,884.10"
UK Trade and Investment,UK Trade and Investment Programme,5/21/2010,Sponsorship,Marketing Directorate - UK Trade and Investments,FOREIGN AND COMMONWEALTH OFFICE (FCO),130695,529.37
UK Trade and Investment,UK Trade and Investment Programme,5/21/2010,Sponsorship,Marketing Directorate - UK Trade and Investments,FOREIGN AND COMMONWEALTH OFFICE (FCO),130697,714.59
UK Trade and Investment,UK Trade and Investment Programme,5/21/2010,Sponsorship,Marketing Directorate - UK Trade and Investments,FOREIGN AND COMMONWEALTH OFFICE (FCO),130767,"8,766.76"
UK Trade and Investment,UK Trade and Investment Programme,5/21/2010,Sponsorship,Marketing Directorate - UK Trade and Investments,FOREIGN AND COMMONWEALTH OFFICE (FCO),130555,645.45
UK Trade and Investment,UK Trade and Investment Programme,5/21/2010,Sponsorship,Marketing Directorate - UK Trade and Investments,FOREIGN AND COMMONWEALTH OFFICE (FCO),130788,"2,454.19"
UK Trade and Investment,UK Trade and Investment Programme,5/21/2010,Sponsorship,Regional Directorate - UK Trade and Investments,EAST MIDLANDS INTERNATIONAL TRADE ASSOCIATION,131835,528.75
UK Trade and Investment,UK Trade and Investment Programme,5/21/2010,Promotional Materials,Marketing Directorate - UK Trade and Investments,FOREIGN AND COMMONWEALTH OFFICE (FCO),130862,"7,102.65"
UK Trade and Investment,UK Trade and Investment Programme,5/21/2010,Promotional Materials,Marketing Directorate - UK Trade and Investments,FOREIGN AND COMMONWEALTH OFFICE (FCO),130530,"1,532.36"
UK Trade and Investment,UK Trade and Investment Programme,5/21/2010,Promotional Materials,Marketing Directorate - UK Trade and Investments,FOREIGN AND COMMONWEALTH OFFICE (FCO),130732,"2,008.07"
UK Trade and Investment,UK Trade and Investment Programme,5/21/2010,Promotional Materials,Marketing Directorate - UK Trade and Investments,FOREIGN AND COMMONWEALTH OFFICE (FCO),130734,"2,543.55"
UK Trade and Investment,UK Trade and Investment Programme,5/21/2010,Promotional Materials,Marketing Directorate - UK Trade and Investments,FOREIGN AND COMMONWEALTH OFFICE (FCO),130576,"3,445.10"
UK Trade and Investment,UK Trade and Investment Programme,5/21/2010,Promotional Materials,Marketing Directorate - UK Trade and Investments,FOREIGN AND COMMONWEALTH OFFICE (FCO),130577,"1,986.59"
UK Trade and Investment,UK Trade and Investment Programme,5/21/2010,Promotional Materials,Marketing Directorate - UK Trade and Investments,FOREIGN AND COMMONWEALTH OFFICE (FCO),130579,"2,726.78"
UK Trade and Investment,UK Trade and Investment Programme,5/21/2010,Promotional Materials,Marketing Directorate - UK Trade and Investments,FOREIGN AND COMMONWEALTH OFFICE (FCO),130580,"1,216.17"
UK Trade and Investment,UK Trade and Investment Programme,5/21/2010,Promotional Materials,Marketing Directorate - UK Trade and Investments,FOREIGN AND COMMONWEALTH OFFICE (FCO),130581,"18,166.41"
UK Trade and Investment,UK Trade and Investment Programme,5/21/2010,Display Materials/Signage,Marketing Directorate - UK Trade and Investments,FOREIGN AND COMMONWEALTH OFFICE (FCO),131198,"2,268.20"
UK Trade and Investment,UK Trade and Investment Programme,5/21/2010,Display Materials/Signage,Marketing Directorate - UK Trade and Investments,FOREIGN AND COMMONWEALTH OFFICE (FCO),130583,"1,823.88"
UK Trade and Investment,UK Trade and Investment Programme,5/21/2010,Printing Costs,Marketing Directorate - UK Trade and Investments,WHITEHOUSE MAINWARING DESIGN CONSULTANTS LTD,131774,"4,142.00"
UK Trade and Investment,UK Trade and Investment Programme,5/21/2010,Printing Costs,Marketing Directorate - UK Trade and Investments,FOREIGN AND COMMONWEALTH OFFICE (FCO),130729,"12,904.65"
UK Trade and Investment,UK Trade and Investment Programme,5/21/2010,Printing Costs,Marketing Directorate - UK Trade and Investments,FOREIGN AND COMMONWEALTH OFFICE (FCO),130742,"1,927.75"
UK Trade and Investment,UK Trade and Investment Programme,5/21/2010,Printing Costs,Marketing Directorate - UK Trade and Investments,FOREIGN AND COMMONWEALTH OFFICE (FCO),130602,"3,020.37"
UK Trade and Investment,UK Trade and Investment Programme,5/21/2010,Photographic Services,Marketing Directorate - UK Trade and Investments,FOREIGN AND COMMONWEALTH OFFICE (FCO),131083,"1,709.98"
UK Trade and Investment,UK Trade and Investment Programme,5/21/2010,Photographic Services,Marketing Directorate - UK Trade and Investments,FOREIGN AND COMMONWEALTH OFFICE (FCO),130735,749.68
UK Trade and Investment,UK Trade and Investment Programme,5/21/2010,Photographic Services,Marketing Directorate - UK Trade and Investments,FOREIGN AND COMMONWEALTH OFFICE (FCO),130740,719.23
UK Trade and Investment,UK Trade and Investment Programme,5/21/2010,Photographic Services,Marketing Directorate - UK Trade and Investments,FOREIGN AND COMMONWEALTH OFFICE (FCO),130741,"14,907.90"
UK Trade and Investment,UK Trade and Investment Programme,5/21/2010,Photographic Services,Marketing Directorate - UK Trade and Investments,FOREIGN AND COMMONWEALTH OFFICE (FCO),130743,"1,432.45"
UK Trade and Investment,UK Trade and Investment Programme,5/21/2010,Video Production Services,Marketing Directorate - UK Trade and Investments,FOREIGN AND COMMONWEALTH OFFICE (FCO),130822,710.65
UK Trade and Investment,UK Trade and Investment Programme,5/21/2010,Video Production Services,Marketing Directorate - UK Trade and Investments,FOREIGN AND COMMONWEALTH OFFICE (FCO),131160,655.61
UK Trade and Investment,UK Trade and Investment Programme,5/21/2010,Design Services,International Sectors Group - UK Trade and Investments,ACUMEN DESIGN CONSULTANCY LTD,131856,990
UK Trade and Investment,UK Trade and Investment Programme,5/21/2010,Design Services,Marketing Directorate - UK Trade and Investments,WHITEHOUSE MAINWARING DESIGN CONSULTANTS LTD,131774,"1,950.00"
UK Trade and Investment,UK Trade and Investment Programme,5/21/2010,Design Services,Marketing Directorate - UK Trade and Investments,FOREIGN AND COMMONWEALTH OFFICE (FCO),130804,511.72
UK Trade and Investment,UK Trade and Investment Programme,5/21/2010,Design Services,Marketing Directorate - UK Trade and Investments,FOREIGN AND COMMONWEALTH OFFICE (FCO),131103,"2,950.24"
UK Trade and Investment,UK Trade and Investment Programme,5/21/2010,Design Services,Marketing Directorate - UK Trade and Investments,FOREIGN AND COMMONWEALTH OFFICE (FCO),131107,636.6
UK Trade and Investment,UK Trade and Investment Programme,5/21/2010,Design Services,Marketing Directorate - UK Trade and Investments,FOREIGN AND COMMONWEALTH OFFICE (FCO),131109,917.85
UK Trade and Investment,UK Trade and Investment Programme,5/21/2010,Design Services,Marketing Directorate - UK Trade and Investments,FOREIGN AND COMMONWEALTH OFFICE (FCO),131126,"9,249.98"
UK Trade and Investment,UK Trade and Investment Programme,5/21/2010,Design Services,Marketing Directorate - UK Trade and Investments,FOREIGN AND COMMONWEALTH OFFICE (FCO),131127,"10,981.45"
UK Trade and Investment,UK Trade and Investment Programme,5/21/2010,Design Services,Marketing Directorate - UK Trade and Investments,FOREIGN AND COMMONWEALTH OFFICE (FCO),131128,"1,048.97"
UK Trade and Investment,UK Trade and Investment Programme,5/21/2010,Design Services,Marketing Directorate - UK Trade and Investments,FOREIGN AND COMMONWEALTH OFFICE (FCO),131129,"11,505.93"
UK Trade and Investment,UK Trade and Investment Programme,5/21/2010,Design Services,Marketing Directorate - UK Trade and Investments,FOREIGN AND COMMONWEALTH OFFICE (FCO),131130,"18,422.61"
UK Trade and Investment,UK Trade and Investment Programme,5/21/2010,Design Services,Marketing Directorate - UK Trade and Investments,FOREIGN AND COMMONWEALTH OFFICE (FCO),131131,"4,372.91"
UK Trade and Investment,UK Trade and Investment Programme,5/21/2010,Design Services,Marketing Directorate - UK Trade and Investments,FOREIGN AND COMMONWEALTH OFFICE (FCO),131203,"12,324.37"
UK Trade and Investment,UK Trade and Investment Programme,5/21/2010,Design Services,Marketing Directorate - UK Trade and Investments,FOREIGN AND COMMONWEALTH OFFICE (FCO),130854,506.63
UK Trade and Investment,UK Trade and Investment Programme,5/21/2010,Design Services,Marketing Directorate - UK Trade and Investments,FOREIGN AND COMMONWEALTH OFFICE (FCO),130858,"5,952.93"
UK Trade and Investment,UK Trade and Investment Programme,5/21/2010,Design Services,Marketing Directorate - UK Trade and Investments,FOREIGN AND COMMONWEALTH OFFICE (FCO),130859,"7,008.42"
UK Trade and Investment,UK Trade and Investment Programme,5/21/2010,Design Services,Marketing Directorate - UK Trade and Investments,FOREIGN AND COMMONWEALTH OFFICE (FCO),130731,"8,924.75"
UK Trade and Investment,UK Trade and Investment Programme,5/21/2010,Design Services,Marketing Directorate - UK Trade and Investments,FOREIGN AND COMMONWEALTH OFFICE (FCO),130775,"1,598.05"
UK Trade and Investment,UK Trade and Investment Programme,5/21/2010,Design Services,Marketing Directorate - UK Trade and Investments,FOREIGN AND COMMONWEALTH OFFICE (FCO),130584,"9,533.14"
UK Trade and Investment,UK Trade and Investment Programme,5/21/2010,Authoring and Copywriting Costs,Marketing Directorate - UK Trade and Investments,FOREIGN AND COMMONWEALTH OFFICE (FCO),130838,"1,498.36"
UK Trade and Investment,UK Trade and Investment Programme,5/21/2010,Printed Publications,Marketing Directorate - UK Trade and Investments,FOREIGN AND COMMONWEALTH OFFICE (FCO),130856,"1,553.67"
UK Trade and Investment,UK Trade and Investment Programme,5/21/2010,Printed Publications,Marketing Directorate - UK Trade and Investments,FOREIGN AND COMMONWEALTH OFFICE (FCO),130860,"2,533.16"
UK Trade and Investment,UK Trade and Investment Programme,5/21/2010,Printed Publications,Marketing Directorate - UK Trade and Investments,FOREIGN AND COMMONWEALTH OFFICE (FCO),130892,"4,852.90"
UK Trade and Investment,UK Trade and Investment Programme,5/21/2010,Printed Publications,Marketing Directorate - UK Trade and Investments,FOREIGN AND COMMONWEALTH OFFICE (FCO),130592,"1,131.48"
UK Trade and Investment,UK Trade and Investment Programme,5/21/2010,Printed Publications,Marketing Directorate - UK Trade and Investments,FOREIGN AND COMMONWEALTH OFFICE (FCO),130596,506.63
UK Trade and Investment,UK Trade and Investment Programme,5/21/2010,Media and Press Services,Marketing Directorate - UK Trade and Investments,FOREIGN AND COMMONWEALTH OFFICE (FCO),130981,"1,384.20"
UK Trade and Investment,UK Trade and Investment Programme,5/21/2010,Media and Press Services,Marketing Directorate - UK Trade and Investments,FOREIGN AND COMMONWEALTH OFFICE (FCO),130982,"5,155.94"
UK Trade and Investment,UK Trade and Investment Programme,5/21/2010,Media and Press Services,Marketing Directorate - UK Trade and Investments,FOREIGN AND COMMONWEALTH OFFICE (FCO),130983,"5,163.68"
UK Trade and Investment,UK Trade and Investment Programme,5/21/2010,Media and Press Services,Marketing Directorate - UK Trade and Investments,FOREIGN AND COMMONWEALTH OFFICE (FCO),130984,"5,163.68"
UK Trade and Investment,UK Trade and Investment Programme,5/21/2010,Media and Press Services,Marketing Directorate - UK Trade and Investments,FOREIGN AND COMMONWEALTH OFFICE (FCO),131030,"2,268.20"
UK Trade and Investment,UK Trade and Investment Programme,5/21/2010,Media and Press Services,Marketing Directorate - UK Trade and Investments,FOREIGN AND COMMONWEALTH OFFICE (FCO),131031,"1,370.49"
UK Trade and Investment,UK Trade and Investment Programme,5/21/2010,Media and Press Services,Marketing Directorate - UK Trade and Investments,FOREIGN AND COMMONWEALTH OFFICE (FCO),130815,"1,688.81"
UK Trade and Investment,UK Trade and Investment Programme,5/21/2010,Media and Press Services,Marketing Directorate - UK Trade and Investments,FOREIGN AND COMMONWEALTH OFFICE (FCO),131114,"2,008.07"
UK Trade and Investment,UK Trade and Investment Programme,5/21/2010,Media and Press Services,Marketing Directorate - UK Trade and Investments,FOREIGN AND COMMONWEALTH OFFICE (FCO),130849,"8,866.03"
UK Trade and Investment,UK Trade and Investment Programme,5/21/2010,Media and Press Services,Marketing Directorate - UK Trade and Investments,FOREIGN AND COMMONWEALTH OFFICE (FCO),130865,"8,840.40"
UK Trade and Investment,UK Trade and Investment Programme,5/21/2010,Media and Press Services,Marketing Directorate - UK Trade and Investments,FOREIGN AND COMMONWEALTH OFFICE (FCO),130866,"18,369.66"
UK Trade and Investment,UK Trade and Investment Programme,5/21/2010,Media and Press Services,Marketing Directorate - UK Trade and Investments,FOREIGN AND COMMONWEALTH OFFICE (FCO),130669,805.13
UK Trade and Investment,UK Trade and Investment Programme,5/21/2010,Telemarketing,Marketing Directorate - UK Trade and Investments,FOREIGN AND COMMONWEALTH OFFICE (FCO),130567,"1,329.91"
UK Trade and Investment,UK Trade and Investment Programme,5/21/2010,Telemarketing,Marketing Directorate - UK Trade and Investments,FOREIGN AND COMMONWEALTH OFFICE (FCO),130578,"2,643.36"
UK Trade and Investment,UK Trade and Investment Programme,5/21/2010,Telemarketing,Marketing Directorate - UK Trade and Investments,FOREIGN AND COMMONWEALTH OFFICE (FCO),130582,"1,453.70"
UK Trade and Investment,UK Trade and Investment Programme,5/21/2010,Research and Development Costs,International Sectors Group - UK Trade and Investments,FOREIGN AND COMMONWEALTH OFFICE (FCO),130977,"1,132.35"
UK Trade and Investment,UK Trade and Investment Programme,5/21/2010,Research and Development Costs,International Sectors Group - UK Trade and Investments,FOREIGN AND COMMONWEALTH OFFICE (FCO),130666,"1,327.14"
UK Trade and Investment,UK Trade and Investment Programme,5/21/2010,Research & Development,Economics and Evaluation - UK Trade and Investments,RICK DENT & JOHN MADDEN T/A RSM,131836,"2,500.00"
UK Trade and Investment,UK Trade and Investment Programme,5/24/2010,Basic Grants,International Sectors Group - UK Trade and Investments,INTERNATIONAL WIRE AND MACHINERY ASSOCIATION,131942,"12,000.00"
UK Trade and Investment,UK Trade and Investment Programme,5/24/2010,Basic Grants,International Sectors Group - UK Trade and Investments,FEDERATION OF BRITISH HAND TOOL MANUFACTURERS,131890,"15,400.00"
UK Trade and Investment,UK Trade and Investment Programme,5/24/2010,Basic Grants,International Sectors Group - UK Trade and Investments,DEFENCE MANUFACTURERS ASSOCIATION LTD,131946,"3,000.00"
UK Trade and Investment,UK Trade and Investment Programme,5/24/2010,Sponsors Grants,International Sectors Group - UK Trade and Investments,INTERNATIONAL WIRE AND MACHINERY ASSOCIATION,131945,"2,820.00"
UK Trade and Investment,UK Trade and Investment Programme,5/24/2010,Sponsors Grants,International Sectors Group - UK Trade and Investments,FEDERATION OF BRITISH HAND TOOL MANUFACTURERS,131889,"14,335.00"
UK Trade and Investment,UK Trade and Investment Programme,5/24/2010,Sponsors Grants,International Sectors Group - UK Trade and Investments,DEFENCE MANUFACTURERS ASSOCIATION LTD,131947,"6,580.00"
UK Trade and Investment,UK Trade and Investment Programme,5/24/2010,Salaries and Wages,Marketing Directorate - UK Trade and Investments,JAMIE OLIVER,131892,"1,250.00"
UK Trade and Investment,UK Trade and Investment Programme,5/24/2010,Secondment costs,Business Group - UK Trade and Investments,PERA INNOVATION LTD,131949,"1,889.20"
UK Trade and Investment,UK Trade and Investment Programme,5/24/2010,Travel and Subsistence O'seas,Regional Directorate - UK Trade and Investments,SMART GARMENT PEOPLE LTD,131989,500
UK Trade and Investment,UK Trade and Investment Programme,5/24/2010,Travel and Subsistence O'seas,Regional Directorate - UK Trade and Investments,ECOTEK UK LTD,131893,"1,000.00"
UK Trade and Investment,UK Trade and Investment Programme,5/24/2010,Professional Subscriptions,Business Group - UK Trade and Investments,THE RESEARCH & DEVELOPMENT SOCIETY,131981,600
UK Trade and Investment,UK Trade and Investment Programme,5/24/2010,Event Management,International Sectors Group - UK Trade and Investments,PHOTONICS & PLASTIC ELECTRONICS KTN,131891,"5,000.00"
UK Trade and Investment,UK Trade and Investment Programme,5/24/2010,Sponsorship,Business Group - UK Trade and Investments,CHEMICAL INDUSTRIES ASSOCIATION LTD,131819,"5,000.00"
UK Trade and Investment,UK Trade and Investment Programme,5/24/2010,Design Services,International Sectors Group - UK Trade and Investments,PANLOGIC LTD,131887,"2,054.00"
UK Trade and Investment,UK Trade and Investment Programme,5/24/2010,Media and Press Services,Regional Directorate - UK Trade and Investments,COI COMMUNICATIONS,131948,"12,280.00"
UK Trade and Investment,UK Trade and Investment Programme,5/24/2010,Media and Press Services,Regional Directorate - UK Trade and Investments,COI COMMUNICATIONS,131948,"2,500.00"
UK Trade and Investment,UK Trade and Investment Programme,5/24/2010,Research and Development Costs,Regional Directorate - UK Trade and Investments,UNIVERSITY OF WOLVERHAMPTON,131957,"4,700.00"
UK Trade and Investment,UK Trade and Investment Programme,5/24/2010,Scheme Management Charges,Regional Directorate - UK Trade and Investments,ONELONDON TRADE AND INVESTMENT LTD,131978,"180,573.75"
UK Trade and Investment,UK Trade and Investment Programme,5/24/2010,Development Cost - Website (AUC) - Clearing Account,Strategy and Human Resources Group - UK Trade and Investments,VENN GROUP LTD,131852,940
UK Trade and Investment,UK Trade and Investment Programme,5/25/2010,Basic Grants,International Sectors Group - UK Trade and Investments,COMMONWEALTH PUBLICATIONS LTD,131999,"1,000.00"
UK Trade and Investment,UK Trade and Investment Programme,5/25/2010,Basic Grants,International Sectors Group - UK Trade and Investments,BORDER BARRIERS SYSTEMS LTD,131996,"1,000.00"
UK Trade and Investment,UK Trade and Investment Programme,5/25/2010,Basic Grants,International Sectors Group - UK Trade and Investments,LEMON RIBBON,131995,"1,000.00"
UK Trade and Investment,UK Trade and Investment Programme,5/25/2010,Basic Grants,International Sectors Group - UK Trade and Investments,REMSDAQ LTD,131997,"1,000.00"
UK Trade and Investment,UK Trade and Investment Programme,5/25/2010,Basic Grants,International Sectors Group - UK Trade and Investments,KATE MACGARRY LTD,132137,"1,000.00"
UK Trade and Investment,UK Trade and Investment Programme,5/25/2010,Basic Grants,International Sectors Group - UK Trade and Investments,FERN-HOWARD LTD,131994,"1,000.00"
UK Trade and Investment,UK Trade and Investment Programme,5/25/2010,Basic Grants,International Sectors Group - UK Trade and Investments,MARLOW ROPES LTD,131992,"1,000.00"
UK Trade and Investment,UK Trade and Investment Programme,5/25/2010,Basic Grants,International Sectors Group - UK Trade and Investments,UK FASHION AND TEXTILE ASSOCIATION LTD (UKFT),132049,"105,600.00"
UK Trade and Investment,UK Trade and Investment Programme,5/25/2010,Sponsors Grants,International Sectors Group - UK Trade and Investments,UK FASHION AND TEXTILE ASSOCIATION LTD (UKFT),132056,"20,680.00"
UK Trade and Investment,UK Trade and Investment Programme,5/25/2010,Salaries and Wages,Marketing Directorate - UK Trade and Investments,ADECCO UK LTD,131849,"1,023.62"
UK Trade and Investment,UK Trade and Investment Programme,5/25/2010,Salaries and Wages,Marketing Directorate - UK Trade and Investments,BROOK STREET (UK) LTD,131848,747.3
UK Trade and Investment,UK Trade and Investment Programme,5/25/2010,Salaries and Wages,Regional Directorate - UK Trade and Investments,BIRMINGHAM CHAMBER OF COMMERCE AND INDUSTRY,132133,"2,056.25"
UK Trade and Investment,UK Trade and Investment Programme,5/25/2010,Salaries and Wages,Regional Directorate - UK Trade and Investments,BIRMINGHAM CHAMBER OF COMMERCE AND INDUSTRY,132133,"9,078.31"
UK Trade and Investment,UK Trade and Investment Programme,5/25/2010,Travel and Subsistence O'seas,Regional Directorate - UK Trade and Investments,SMITH ELECTRIC VEHICLES A DIVISION OF THE TANFIELD GROUP PLC,132132,914.9
UK Trade and Investment,UK Trade and Investment Programme,5/25/2010,Training - General,Regional Directorate - UK Trade and Investments,Y & H IDB LTD T/A BUSINESS LINK YORKSHIRE,131513,772.75
UK Trade and Investment,UK Trade and Investment Programme,5/25/2010,Other Accomodation costs,International Sectors Group - UK Trade and Investments,VICTORIA AND ALBERT MUSEUM,132130,588.12
UK Trade and Investment,UK Trade and Investment Programme,5/25/2010,Event Management,Defence and Security Organisation - UK Trade and Investments,FIRE INDUSTRY ASSOCIATION LTD,132039,"4,190.03"
UK Trade and Investment,UK Trade and Investment Programme,5/25/2010,Advertising,Regional Directorate - UK Trade and Investments,GLE INVESTMENTS LTD,132061,"3,425.00"
UK Trade and Investment,UK Trade and Investment Programme,5/25/2010,Advertising,International Sectors Group - UK Trade and Investments,GAZETTE MEDIA COMPANY LTD,132140,588.67
UK Trade and Investment,UK Trade and Investment Programme,5/25/2010,Promotional Materials,Regional Directorate - UK Trade and Investments,Y & H IDB LTD T/A BUSINESS LINK YORKSHIRE,131513,"1,061.03"
UK Trade and Investment,UK Trade and Investment Programme,5/25/2010,Printing Costs,Regional Directorate - UK Trade and Investments,RSC LITHOGRAPHICS PRINT LTD,131828,"1,880.00"
UK Trade and Investment,UK Trade and Investment Programme,5/25/2010,Design Services,Business Group - UK Trade and Investments,FUSE 8 LTD,131991,750
UK Trade and Investment,UK Trade and Investment Programme,5/25/2010,Scheme Management Charges,Business Group - UK Trade and Investments,PERA INNOVATION LTD,132139,"14,086.92"
UK Trade and Investment,UK Trade and Investment Programme,5/25/2010,Scheme Management Charges,Regional Directorate - UK Trade and Investments,2BIO LTD,131766,"1,500.00"
UK Trade and Investment,UK Trade and Investment Programme,5/25/2010,Scheme Management Charges,Regional Directorate - UK Trade and Investments,Y & H IDB LTD T/A BUSINESS LINK YORKSHIRE,131513,"114,249.39"
UK Trade and Investment,UK Trade and Investment Programme,5/25/2010,Scheme Management Charges,Regional Directorate - UK Trade and Investments,Y & H IDB LTD T/A BUSINESS LINK YORKSHIRE,131513,"17,788.96"
UK Trade and Investment,UK Trade and Investment Programme,5/25/2010,Scheme Management Charges,Regional Directorate - UK Trade and Investments,RDC AVIATION LTD,131844,"1,500.00"
UK Trade and Investment,UK Trade and Investment Programme,5/25/2010,Scheme Management Charges,Regional Directorate - UK Trade and Investments,MEDALYTIX LTD,131765,"1,500.00"
UK Trade and Investment,UK Trade and Investment Programme,5/25/2010,Scheme Management Charges,Regional Directorate - UK Trade and Investments,RAXTON LTD,131768,"1,500.00"
UK Trade and Investment,UK Trade and Investment Programme,5/25/2010,Scheme Management Charges,Regional Directorate - UK Trade and Investments,THE BRIARS GROUP LTD,131797,"1,500.00"
UK Trade and Investment,UK Trade and Investment Programme,5/25/2010,Scheme Management Charges,Regional Directorate - UK Trade and Investments,J+S LTD,131832,"1,500.00"
UK Trade and Investment,UK Trade and Investment Programme,5/25/2010,IT software and licences,Regional Directorate - UK Trade and Investments,EVENTSFORCE SOLUTIONS LTD,132058,"2,852.00"
UK Trade and Investment,UK Trade and Investment Programme,5/25/2010,Other IT Services,IT and Finance Group - UK Trade and Investments,S & S DATA LTD,131636,"2,194.63"
UK Trade and Investment,UK Trade and Investment Programme,5/25/2010,Other IT Services,IT and Finance Group - UK Trade and Investments,S & S DATA LTD,131635,"1,446.32"
UK Trade and Investment,UK Trade and Investment Programme,5/25/2010,Other IT Services,IT and Finance Group - UK Trade and Investments,S & S DATA LTD,131633,"3,589.39"
UK Trade and Investment,UK Trade and Investment Programme,5/25/2010,Other IT Services,IT and Finance Group - UK Trade and Investments,S & S DATA LTD,131632,"2,000.25"
UK Trade and Investment,UK Trade and Investment Programme,5/25/2010,IT Managed Service Contracts,Regional Directorate - UK Trade and Investments,NATIONAL EXHIBITION CENTRE,132134,"4,130.51"
UK Trade and Investment,UK Trade and Investment Programme,5/25/2010,Development Cost - Website (AUC) - Clearing Account,Strategy and Human Resources Group - UK Trade and Investments,MORGAN HUNT PUBLIC SECTOR LTD,132004,940
UK Trade and Investment,UK Trade and Investment Programme,5/25/2010,Development Cost - Website (AUC) - Clearing Account,Strategy and Human Resources Group - UK Trade and Investments,MORGAN HUNT PUBLIC SECTOR LTD,132004,-940
UK Trade and Investment,UK Trade and Investment Programme,5/25/2010,Development Cost - Website (AUC) - Clearing Account,Strategy and Human Resources Group - UK Trade and Investments,MORGAN HUNT PUBLIC SECTOR LTD,132004,940
UK Trade and Investment,UK Trade and Investment Programme,5/25/2010,Development Cost - Website (AUC) - Clearing Account,Strategy and Human Resources Group - UK Trade and Investments,MORGAN HUNT PUBLIC SECTOR LTD,132005,940
UK Trade and Investment,UK Trade and Investment Programme,5/25/2010,Development Cost - Website (AUC) - Clearing Account,Strategy and Human Resources Group - UK Trade and Investments,VENN GROUP LTD,131990,940
UK Trade and Investment,UK Trade and Investment Programme,5/25/2010,Software - Clearing A/c,IT and Finance Group - UK Trade and Investments,FUJITSU SERVICES LTD,132002,"93,261.88"
UK Trade and Investment,UK Trade and Investment Programme,5/25/2010,Software - Clearing A/c,IT and Finance Group - UK Trade and Investments,FUJITSU SERVICES LTD,132001,"375,071.75"
UK Trade and Investment,UK Trade and Investment Programme,5/26/2010,Basic Grants,International Sectors Group - UK Trade and Investments,BIRMINGHAM CHAMBER OF COMMERCE & INDUSTRY,132164,"5,000.00"
UK Trade and Investment,UK Trade and Investment Programme,5/26/2010,Basic Grants,International Sectors Group - UK Trade and Investments,BIRMINGHAM CHAMBER OF COMMERCE & INDUSTRY,132150,"2,000.00"
UK Trade and Investment,UK Trade and Investment Programme,5/26/2010,Basic Grants,International Sectors Group - UK Trade and Investments,DATATEAM PUBLISHING LTD,132163,"1,000.00"
UK Trade and Investment,UK Trade and Investment Programme,5/26/2010,Basic Grants,International Sectors Group - UK Trade and Investments,RK INTERNATIONAL MACHINE TOOLS LTD,132153,"1,000.00"
UK Trade and Investment,UK Trade and Investment Programme,5/26/2010,Sponsors Grants,International Sectors Group - UK Trade and Investments,BIRMINGHAM CHAMBER OF COMMERCE & INDUSTRY,132165,"1,175.00"
UK Trade and Investment,UK Trade and Investment Programme,5/26/2010,Travel and Subsistence O'seas,Regional Directorate - UK Trade and Investments,OXYGEN HEALTHCARE LTD,132166,500
UK Trade and Investment,UK Trade and Investment Programme,5/26/2010,Travel and Subsistence O'seas,Regional Directorate - UK Trade and Investments,ALPHA BIOLOGICS LTD,132157,500
UK Trade and Investment,UK Trade and Investment Programme,5/26/2010,Event Management,Business Group - UK Trade and Investments,WISE PRODUCTIONS (UK) LTD,132161,"1,830.00"
UK Trade and Investment,UK Trade and Investment Programme,5/26/2010,Event Management,International Sectors Group - UK Trade and Investments,BELL DESIGN & COMMUNICATIONS LTD,132160,"9,000.00"
UK Trade and Investment,UK Trade and Investment Programme,5/26/2010,Speakers fees,International Sectors Group - UK Trade and Investments,MEDILINK (YORKSHIRE AND HUMBER) LTD,132143,"5,000.00"
UK Trade and Investment,UK Trade and Investment Programme,5/26/2010,Stand Construction Costs,Marketing Directorate - UK Trade and Investments,CLEARVIEW IMAGING SERVICES LTD,132162,"50,000.00"
UK Trade and Investment,UK Trade and Investment Programme,5/26/2010,Advertising,International Sectors Group - UK Trade and Investments,TURRET MIDDLE EAST LTD,132154,"9,600.00"
UK Trade and Investment,UK Trade and Investment Programme,5/26/2010,Advertising,International Sectors Group - UK Trade and Investments,TURRET MIDDLE EAST LTD,132155,"7,359.36"
UK Trade and Investment,UK Trade and Investment Programme,5/26/2010,Advertising,Regional Directorate - UK Trade and Investments,TEN ALPS COMMUNICATIONS LTD T/A TEN ALPS PUBLISHING,132152,600
UK Trade and Investment,UK Trade and Investment Programme,5/26/2010,Online Services charges,International Sectors Group - UK Trade and Investments,BUSINESS MONITOR INTERNATIONAL,132149,"7,000.00"
UK Trade and Investment,UK Trade and Investment Programme,5/26/2010,Translation/Interpretation services,International Sectors Group - UK Trade and Investments,RUSSIAN LINGUISTIC SERVICES LTD,132156,"2,170.50"
UK Trade and Investment,UK Trade and Investment Programme,5/26/2010,Scheme Management Charges,Regional Directorate - UK Trade and Investments,GOLDEN VISION LTD,132170,"3,525.00"
UK Trade and Investment,UK Trade and Investment Programme,5/26/2010,Scheme Management Charges,Regional Directorate - UK Trade and Investments,EAST OF ENGLAND IDB LTD,132167,"314,982.00"
UK Trade and Investment,UK Trade and Investment Programme,5/27/2010,Basic Grants,International Sectors Group - UK Trade and Investments,SERFILCO INTERNATIONAL LTD,131693,"1,000.00"
UK Trade and Investment,UK Trade and Investment Programme,5/27/2010,Basic Grants,International Sectors Group - UK Trade and Investments,AMUSEMENT & LEISURE EQUIPMENT SUPPLIERS (ALES UK),132175,"23,800.00"
UK Trade and Investment,UK Trade and Investment Programme,5/27/2010,Basic Grants,International Sectors Group - UK Trade and Investments,BIOINDUSTRY ASSOCIATION,132189,"14,200.00"
UK Trade and Investment,UK Trade and Investment Programme,5/27/2010,Salaries and Wages,Business Group - UK Trade and Investments,FOREIGN AND COMMONWEALTH OFFICE (FCO),131223,"92,000.00"
UK Trade and Investment,UK Trade and Investment Programme,5/27/2010,Salaries and Wages,Business Group - UK Trade and Investments,FOREIGN AND COMMONWEALTH OFFICE (FCO),131223,600
UK Trade and Investment,UK Trade and Investment Programme,5/27/2010,Salaries and Wages,Regional Directorate - UK Trade and Investments,FOREIGN AND COMMONWEALTH OFFICE (FCO),131220,"96,200.00"
UK Trade and Investment,UK Trade and Investment Programme,5/27/2010,Travel and Subsistence UK,Regional Directorate - UK Trade and Investments,SGB ASSOCIATES,132168,876.94
UK Trade and Investment,UK Trade and Investment Programme,5/27/2010,Travel and Subsistence O'seas,Regional Directorate - UK Trade and Investments,STAFFORD CONSULTING SERVICES LTD T/A COACH2SUCCEED,132172,650
UK Trade and Investment,UK Trade and Investment Programme,5/27/2010,Travel and Subsistence O'seas,Regional Directorate - UK Trade and Investments,LG BALL VALVES LTD,132192,500
UK Trade and Investment,UK Trade and Investment Programme,5/27/2010,Travel and Subsistence O'seas,Regional Directorate - UK Trade and Investments,THE TRUSTLAND GROUP LTD,132202,500
UK Trade and Investment,UK Trade and Investment Programme,5/27/2010,Travel and Subsistence O'seas,Regional Directorate - UK Trade and Investments,BAMBINO MIO LTD,132186,750
UK Trade and Investment,UK Trade and Investment Programme,5/27/2010,Venue Hire,Regional Directorate - UK Trade and Investments,CITY INN LEEDS,132177,"2,634.04"
UK Trade and Investment,UK Trade and Investment Programme,5/27/2010,Promotional Materials,Defence and Security Organisation - UK Trade and Investments,CHRIS DAVIES & CHARLES O'CONNOR T/A TOTAL TEAMWEAR,132174,"1,064.84"
UK Trade and Investment,UK Trade and Investment Programme,5/27/2010,Photographic Services,Marketing Directorate - UK Trade and Investments,CRUZ IT LTD T/A CIT DIGITAL,132179,"3,000.00"
UK Trade and Investment,UK Trade and Investment Programme,5/27/2010,Scheme Management Charges,Regional Directorate - UK Trade and Investments,SGB ASSOCIATES,132168,"5,728.13"
UK Trade and Investment,UK Trade and Investment Programme,5/27/2010,Scheme Management Charges,Regional Directorate - UK Trade and Investments,RUSSELL BUSINESS SERVICES LTD,132171,"5,922.00"
UK Trade and Investment,UK Trade and Investment Programme,5/27/2010,Scheme Management Charges,Regional Directorate - UK Trade and Investments,RUSSELL BUSINESS SERVICES LTD,132171,542.11
UK Trade and Investment,UK Trade and Investment Programme,5/27/2010,Scheme Management Charges,Regional Directorate - UK Trade and Investments,WEST MIDLANDS INTERNATIONAL TRADE LLP,132199,"163,300.00"
UK Trade and Investment,UK Trade and Investment Programme,5/27/2010,Scheme Management Charges,Regional Directorate - UK Trade and Investments,HETERARCHY LTD,132086,914.93
UK Trade and Investment,UK Trade and Investment Programme,5/27/2010,Scheme Management Charges,Regional Directorate - UK Trade and Investments,WESTFIELD SPORTSCARS LTD,132082,"1,500.00"
UK Trade and Investment,UK Trade and Investment Programme,5/27/2010,Scheme Management Charges,Regional Directorate - UK Trade and Investments,NATURETREK,132105,616.99
UK Trade and Investment,UK Trade and Investment Programme,5/27/2010,Scheme Management Charges,Regional Directorate - UK Trade and Investments,SAVANTOR INTERNATIONAL LTD,132107,"1,500.00"
UK Trade and Investment,UK Trade and Investment Programme,5/27/2010,Scheme Management Charges,Regional Directorate - UK Trade and Investments,ZEDCAM LTD,132094,567.23
UK Trade and Investment,UK Trade and Investment Programme,5/27/2010,Scheme Management Charges,Regional Directorate - UK Trade and Investments,HAWKING ELECTROTECHNOLOGY LTD,132076,"1,500.00"
UK Trade and Investment,UK Trade and Investment Programme,5/27/2010,Scheme Management Charges,Regional Directorate - UK Trade and Investments,MUNDY VENEER LTD,132088,"1,500.00"
UK Trade and Investment,UK Trade and Investment Programme,5/27/2010,Scheme Management Charges,Regional Directorate - UK Trade and Investments,MISHORTS LTD,132108,760.37
UK Trade and Investment,UK Trade and Investment Programme,5/27/2010,Scheme Management Charges,Regional Directorate - UK Trade and Investments,DATAWRIGHT COMPUTER SERVICES,132092,"1,466.42"
UK Trade and Investment,UK Trade and Investment Programme,5/27/2010,Development Cost - Website (AUC) - Clearing Account,Strategy and Human Resources Group - UK Trade and Investments,MORGAN HUNT PUBLIC SECTOR LTD,132180,752
UK Trade and Investment,UK Trade and Investment Programme,5/28/2010,Basic Grants,International Sectors Group - UK Trade and Investments,PSP DENTAL COMPANY LTD,132223,"1,000.00"
UK Trade and Investment,UK Trade and Investment Programme,5/28/2010,Basic Grants,International Sectors Group - UK Trade and Investments,THE MOBILE CATERING GROUP LTD T/A STARTSMART,132210,"1,000.00"
UK Trade and Investment,UK Trade and Investment Programme,5/28/2010,Basic Grants,International Sectors Group - UK Trade and Investments,EYEOL UK LTD,132231,"1,000.00"
UK Trade and Investment,UK Trade and Investment Programme,5/28/2010,Basic Grants,International Sectors Group - UK Trade and Investments,LINSTOL UK LTD,132229,"1,000.00"
UK Trade and Investment,UK Trade and Investment Programme,5/28/2010,Basic Grants,International Sectors Group - UK Trade and Investments,YOSPACE TECHNOLOGIES LTD,132224,"1,000.00"
UK Trade and Investment,UK Trade and Investment Programme,5/28/2010,Basic Grants,International Sectors Group - UK Trade and Investments,ENGINEERING INDUSTRIES ASSOCIATION,132208,"4,200.00"
UK Trade and Investment,UK Trade and Investment Programme,5/28/2010,Basic Grants,International Sectors Group - UK Trade and Investments,SGW SERVICES LTD T/A SGW SECURITY CONSULTING,132212,"1,000.00"
UK Trade and Investment,UK Trade and Investment Programme,5/28/2010,Sponsors Grants,International Sectors Group - UK Trade and Investments,ENGINEERING INDUSTRIES ASSOCIATION,132207,705
UK Trade and Investment,UK Trade and Investment Programme,5/28/2010,Salaries and Wages,Marketing Directorate - UK Trade and Investments,CLARE BARNFATHER,132295,"4,537.10"
UK Trade and Investment,UK Trade and Investment Programme,5/28/2010,Travel and Subsistence O'seas,International Sectors Group - UK Trade and Investments,JSS CONSULTANTS LTD T/A PORT EVOLUTION MANAGEMENT,132206,"4,276.85"
UK Trade and Investment,UK Trade and Investment Programme,5/28/2010,Travel and Subsistence O'seas,Regional Directorate - UK Trade and Investments,YORPOWER LTD,132222,995
UK Trade and Investment,UK Trade and Investment Programme,5/28/2010,Entertainment UK,Defence and Security Organisation - UK Trade and Investments,THE ROYAL HORSEGUARDS HOTEL LTD,132292,900
UK Trade and Investment,UK Trade and Investment Programme,5/28/2010,Entertainment UK,Defence and Security Organisation - UK Trade and Investments,THE ROYAL HORSEGUARDS HOTEL LTD,132290,900
UK Trade and Investment,UK Trade and Investment Programme,5/28/2010,Event Management,International Sectors Group - UK Trade and Investments,VENN GROUP LTD,132287,"1,999.99"
UK Trade and Investment,UK Trade and Investment Programme,5/28/2010,Event Management,Regional Directorate - UK Trade and Investments,WHETSTONE GROUP LTD,129359,"3,000.00"
UK Trade and Investment,UK Trade and Investment Programme,5/28/2010,Event Management,Regional Directorate - UK Trade and Investments,GREATER LONDON ENTERPRISE LTD,132284,"25,000.00"
UK Trade and Investment,UK Trade and Investment Programme,5/28/2010,Event Management,Regional Directorate - UK Trade and Investments,GREATER LONDON ENTERPRISE LTD,132284,"10,000.00"
UK Trade and Investment,UK Trade and Investment Programme,5/28/2010,Speakers fees,International Sectors Group - UK Trade and Investments,PR SMITH MARKETING COMMUNICATIONS,132203,"1,367.94"
UK Trade and Investment,UK Trade and Investment Programme,5/28/2010,Sponsorship,Marketing Directorate - UK Trade and Investments,BRITISH AMERICAN BUSINESS INC,132283,"10,000.00"
UK Trade and Investment,UK Trade and Investment Programme,5/28/2010,Design Services,Business Group - UK Trade and Investments,FUSE 8 LTD,132136,"3,260.63"
UK Trade and Investment,UK Trade and Investment Programme,5/28/2010,Printed Publications,Business Group - UK Trade and Investments,ESPICOM LTD,132282,"2,095.00"
UK Trade and Investment,UK Trade and Investment Programme,5/28/2010,Scheme Management Charges,Business Group - UK Trade and Investments,PERA INNOVATION LTD,132289,"305,825.73"
UK Trade and Investment,UK Trade and Investment Programme,5/28/2010,Scheme Management Charges,International Sectors Group - UK Trade and Investments,PERA INNOVATION LTD,132285,"21,702.90"










































































































































































































































































































































































































































































































































































































































































































































































































































UK Trade and Investment,UK Trade and Investment Programme,5/28/2010,Translation/Interpretation services,International Sectors Group - UK Trade and Investments,ARADCO VSI LTD,132205,325
